Workbook

Sheet Dépôts
A1: Nombre de livres reçus par dépôt légal | B1: 2016 | C1: 2017 | D1: 2018
B2: 77986 | C2: 81263 | D2: 82313
A5: Tirage initial médian | B5: 2016 | C5: 2017 | D5: 2018
B6: 1200 | C6: 1200 | D6: 1200
A9: Prix moyen des ouvrages déposés | B9: 2016 | C9: 2017 | D9: 2018
B10: 22.76 | C10: 21.75 | D10: 22.99
A14: Source : Entrées dépôt légal livres imprimés

Sheet Déposants
A1: Nombre de dépôts et déposants répartis selon le nombre de dépôts annuels par déposant
A2: Livres | B2: 2016 | D2: 2017 | F2: 2018
A3: Tranches de dépôts par an | B3: Nb dépôts | C3: Nb déposants | D3: Nb dépôts | E3: Nb déposants | F3: Nb dépôts | G3: Nb déposants
A4: 1 dépôt | B4: 3990 | C4: 3990 | D4: 4077 | E4: 4077 | F4: 4223 | G4: 4223
A5: 2 à 10 dépôts | B5: 12566 | C5: 3160 | D5: 12876 | E5: 3301 | F5: 13268 | G5: 3421
A6: 11 à 100 dépôts | B6: 26900 | C6: 963 | D6: 26982 | E6: 1001 | F6: 26755 | G6: 961
A7: 101 à 1000 dépôts | B7: 27349 | C7: 108 | D7: 28550 | E7: 118 | F7: 26980 | G7: 114
A8: > 1000 dépôts | B8: 7181 | C8: 3 | D8: 8778 | E8: 4 | F8: 11087 | G8: 5
A9: Total Livres | B9: =SUM(B4:B8) -> 77986 | C9: 8224 | D9: 81263 | E9: 8501 | F9: 82313 | G9: 8724
A10: Source : Entrées dépôt légal livres imprimés
A12: Nombre de dépôts et déposants par département et région déposant
A13: Livres | E13: 2016 | H13: 2017 | K13: 2018
A14: Pays déposant | B14: Région | C14: Code département | D14: Département | E14: Nb déposants | F14: Nb nouveaux déposants | G14: Nb dépôts | H14: Nb déposants | I14: Nb nouveaux déposants | J14: Nb dépôts | K14: Nb déposants | L14: Nb nouveaux déposants | M14: Nb dépôts
A15: France | B15: Auvergne - Rhône Alpes | C15: 01 | D15: Ain | E15: 39 | F15: 19 | G15: 128 | H15: 35 | I15: 14 | J15: 97 | K15: 31 | L15: 11 | M15: 80
C16: 03 | D16: Allier | E16: 38 | F16: 15 | G16: 127 | H16: 39 | I16: 14 | J16: 118 | K16: 37 | L16: 15 | M16: 161
C17: 07 | D17: Ardèche | E17: 35 | F17: 14 | G17: 85 | H17: 43 | I17: 20 | J17: 138 | K17: 51 | L17: 22 | M17: 118
C18: 15 | D18: Cantal | E18: 17 | F18: 6 | G18: 48 | H18: 17 | I18: 9 | J18: 60 | K18: 13 | L18: 1 | M18: 52
C19: 26 | D19: Drome | E19: 69 | F19: 22 | G19: 223 | H19: 70 | I19: 19 | J19: 202 | K19: 78 | L19: 29 | M19: 260
C20: 38 | D20: Isère | E20: 135 | F20: 49 | G20: 1117 | H20: 123 | I20: 45 | J20: 980 | K20: 126 | L20: 53 | M20: 1191
C21: 42 | D21: Loire | E21: 54 | F21: 23 | G21: 161 | H21: 66 | I21: 26 | J21: 236 | K21: 63 | L21: 24 | M21: 208
C22: 43 | D22: Haute-Loire | E22: 24 | F22: 7 | G22: 84 | H22: 30 | I22: 10 | J22: 86 | K22: 33 | L22: 15 | M22: 96
C23: 63 | D23: Puy-de-Dôme | E23: 89 | F23: 23 | G23: 520 | H23: 82 | I23: 27 | J23: 657 | K23: 75 | L23: 17 | M23: 544
C24: 69 | D24: Rhône | E24: 231 | F24: 81 | G24: 1265 | H24: 225 | I24: 90 | J24: 1169 | K24: 245 | L24: 78 | M24: 1216
C25: 73 | D25: Savoie | E25: 42 | F25: 19 | G25: 115 | H25: 35 | I25: 18 | J25: 101 | K25: 38 | L25: 18 | M25: 114
C26: 74 | D26: Haute-Savoie | E26: 73 | F26: 24 | G26: 388 | H26: 76 | I26: 24 | J26: 342 | K26: 67 | L26: 26 | M26: 399
B27: Bourgogne - Franche-Comté | C27: 21 | D27: Cote d'Or | E27: 79 | F27: 22 | G27: 384 | H27: 77 | I27: 27 | J27: 324 | K27: 67 | L27: 18 | M27: 317
C28: 25 | D28: Doubs | E28: 62 | F28: 21 | G28: 222 | H28: 68 | I28: 23 | J28: 311 | K28: 64 | L28: 22 | M28: 198
C29: 39 | D29: Jura | E29: 25 | F29: 9 | G29: 70 | H29: 26 | I29: 8 | J29: 69 | K29: 33 | L29: 11 | M29: 82
C30: 58 | D30: Nièvre | E30: 24 | F30: 10 | G30: 54 | H30: 23 | I30: 7 | J30: 57 | K30: 28 | L30: 11 | M30: 75
C31: 70 | D31: Haute-Saône | E31: 14 | F31: 5 | G31: 37 | H31: 14 | I31: 5 | J31: 31 | K31: 20 | L31: 10 | M31: 75
C32: 71 | D32: Saône-et-Loire | E32: 85 | F32: 34 | G32: 312 | H32: 89 | I32: 34 | J32: 425 | K32: 76 | L32: 29 | M32: 392
C33: 89 | D33: Yonne | E33: 49 | F33: 20 | G33: 123 | H33: 43 | I33: 14 | J33: 160 | K33: 39 | L33: 13 | M33: 109
C34: 90 | D34: Territoire de Belfort | E34: 14 | F34: 9 | G34: 23 | H34: 14 | I34: 2 | J34: 22 | K34: 9 | L34: 2 | M34: 12
B35: Bretagne | C35: 22 | D35: Côtes-d'Armor | E35: 63 | F35: 26 | G35: 238 | H35: 67 | I35: 23 | J35: 263 | K35: 66 | L35: 16 | M35: 222
C36: 29 | D36: Finistère | E36: 116 | F36: 34 | G36: 609 | H36: 114 | I36: 29 | J36: 659 | K36: 107 | L36: 33 | M36: 507
C37: 35 | D37: Ille-et-Vilaine | E37: 111 | F37: 39 | G37: 811 | H37: 122 | I37: 41 | J37: 756 | K37: 116 | L37: 43 | M37: 715
C38: 56 | D38: Morbihan | E38: 71 | F38: 30 | G38: 235 | H38: 61 | I38: 26 | J38: 248 | K38: 70 | L38: 27 | M38: 256
B39: Centre - Val-de-Loire | C39: 18 | D39: Cher | E39: 20 | F39: 8 | G39: 77 | H39: 29 | I39: 14 | J39: 169 | K39: 21 | L39: 5 | M39: 58
C40: 28 | D40: Eure-et-Loir | E40: 36 | F40: 13 | G40: 154 | H40: 29 | I40: 13 | J40: 152 | K40: 35 | L40: 12 | M40: 142
C41: 36 | D41: Indre | E41: 35 | F41: 14 | G41: 130 | H41: 36 | I41: 10 | J41: 110 | K41: 32 | L41: 10 | M41: 83
C42: 37 | D42: Indre-et-Loire | E42: 69 | F42: 36 | G42: 290 | H42: 72 | I42: 22 | J42: 328 | K42: 72 | L42: 25 | M42: 361
C43: 41 | D43: Loir-et-Cher | E43: 40 | F43: 14 | G43: 214 | H43: 30 | I43: 11 | J43: 150 | K43: 38 | L43: 14 | M43: 164
C44: 45 | D44: Loiret | E44: 55 | F44: 28 | G44: 149 | H44: 53 | I44: 14 | J44: 111 | K44: 56 | L44: 15 | M44: 129
B45: Corse | C45: 20 | D45: Corse | E45: 28 | F45: 6 | G45: 127 | H45: 33 | I45: 9 | J45: 120 | K45: 32 | L45: 9 | M45: 147
B46: Grand-Est | C46: 08 | D46: Ardennes | E46: 12 | F46: 3 | G46: 73 | H46: 12 | I46: 6 | J46: 117 | K46: 14 | L46: 2 | M46: 53
C47: 10 | D47: Aube | E47: 19 | F47: 6 | G47: 48 | H47: 22 | I47: 6 | J47: 77 | K47: 25 | L47: 10 | M47: 227
C48: 51 | D48: Marne | E48: 42 | F48: 13 | G48: 134 | H48: 44 | I48: 16 | J48: 107 | K48: 29 | L48: 10 | M48: 84
C49: 52 | D49: Haute-Marne | E49: 14 | F49: 8 | G49: 69 | H49: 14 | I49: 4 | J49: 72 | K49: 23 | L49: 12 | M49: 89
C50: 54 | D50: Meurthe-et-Moselle | E50: 66 | F50: 19 | G50: 243 | H50: 65 | I50: 21 | J50: 219 | K50: 76 | L50: 21 | M50: 274
C51: 55 | D51: Meuse | E51: 13 | F51: 6 | G51: 25 | H51: 11 | I51: 3 | J51: 14 | K51: 15 | L51: 7 | M51: 33
C52: 57 | D52: Moselle | E52: 68 | F52: 32 | G52: 267 | H52: 65 | I52: 17 | J52: 230 | K52: 62 | L52: 21 | M52: 235
C53: 67 | D53: Bas-Rhin | E53: 113 | F53: 51 | G53: 451 | H53: 116 | I53: 48 | J53: 396 | K53: 118 | L53: 37 | M53: 387
C54: 68 | D54: Haut-Rhin | E54: 60 | F54: 26 | G54: 216 | H54: 57 | I54: 13 | J54: 191 | K54: 63 | L54: 24 | M54: 161
C55: 88 | D55: Vosges | E55: 26 | F55: 10 | G55: 102 | H55: 23 | I55: 8 | J55: 132 | K55: 43 | L55: 15 | M55: 186
B56: Hauts-de-France | C56: 02 | D56: Aisne | E56: 19 | F56: 10 | G56: 106 | H56: 40 | I56: 15 | J56: 160 | K56: 29 | L56: 12 | M56: 87
C57: 59 | D57: Nord | E57: 178 | F57: 67 | G57: 670 | H57: 187 | I57: 59 | J57: 719 | K57: 187 | L57: 74 | M57: 657
C58: 60 | D58: Oise | E58: 46 | F58: 13 | G58: 122 | H58: 40 | I58: 19 | J58: 82 | K58: 47 | L58: 14 | M58: 89
C59: 62 | D59: Pas-de-Calais | E59: 51 | F59: 24 | G59: 160 | H59: 52 | I59: 16 | J59: 143 | K59: 66 | L59: 23 | M59: 197
C60: 80 | D60: Somme | E60: 31 | F60: 13 | G60: 70 | H60: 35 | I60: 13 | J60: 162 | K60: 35 | L60: 11 | M60: 125
B61: Ile-de-France | C61: 75 | D61: Paris | E61: 1717 | F61: 428 | G61: 37077 | H61: 1760 | I61: 393 | J61: 37134 | K61: 1751 | L61: 373 | M61: 36373
C62: 77 | D62: Seine-et-Marne | E62: 108 | F62: 45 | G62: 412 | H62: 106 | I62: 29 | J62: 528 | K62: 113 | L62: 42 | M62: 494
C63: 78 | D63: Yvelines | E63: 141 | F63: 64 | G63: 610 | H63: 148 | I63: 65 | J63: 738 | K63: 138 | L63: 47 | M63: 876
C64: 91 | D64: Essonne | E64: 100 | F64: 39 | G64: 521 | H64: 101 | I64: 34 | J64: 1038 | K64: 109 | L64: 43 | M64: 671
C65: 92 | D65: Hauts-de-Seine | E65: 245 | F65: 75 | G65: 5719 | H65: 250 | I65: 72 | J65: 6004 | K65: 248 | L65: 68 | M65: 6643
C66: 93 | D66: Seine-Saint-Denis | E66: 122 | F66: 37 | G66: 3840 | H66: 149 | I66: 58 | J66: 5399 | K66: 139 | L66: 41 | M66: 6574
C67: 94 | D67: Val-de-Marne | E67: 187 | F67: 62 | G67: 1405 | H67: 191 | I67: 59 | J67: 1159 | K67: 194 | L67: 72 | M67: 1199
C68: 95 | D68: Val-d'Oise | E68: 68 | F68: 30 | G68: 230 | H68: 64 | I68: 30 | J68: 132 | K68: 77 | L68: 30 | M68: 137
B69: Normandie | C69: 14 | D69: Calvados | E69: 76 | F69: 28 | G69: 298 | H69: 62 | I69: 13 | J69: 290 | K69: 70 | L69: 29 | M69: 286
C70: 27 | D70: Eure | E70: 53 | F70: 21 | G70: 344 | H70: 45 | I70: 13 | J70: 344 | K70: 48 | L70: 15 | M70: 441
C71: 50 | D71: Manche | E71: 32 | F71: 15 | G71: 82 | H71: 33 | I71: 11 | J71: 71 | K71: 43 | L71: 18 | M71: 97
C72: 61 | D72: Orne | E72: 23 | F72: 7 | G72: 63 | H72: 25 | I72: 7 | J72: 68 | K72: 23 | L72: 6 | M72: 51
C73: 76 | D73: Seine-Maritime | E73: 91 | F73: 34 | G73: 312 | H73: 93 | I73: 28 | J73: 358 | K73: 76 | L73: 24 | M73: 283
B74: Nouvelle-Aquitaine | C74: 16 | D74: Charente | E74: 38 | F74: 15 | G74: 131 | H74: 42 | I74: 13 | J74: 132 | K74: 45 | L74: 18 | M74: 112
C75: 17 | D75: Charente-Maritime | E75: 74 | F75: 37 | G75: 455 | H75: 73 | I75: 31 | J75: 474 | K75: 63 | L75: 16 | M75: 516
C76: 19 | D76: Corrèze | E76: 21 | F76: 4 | G76: 90 | H76: 32 | I76: 11 | J76: 110 | K76: 25 | L76: 6 | M76: 75
C77: 23 | D77: Creuse | E77: 11 | F77: 1 | G77: 32 | H77: 9 | I77: 3 | J77: 40 | K77: 15 | L77: 8 | M77: 33
C78: 24 | D78: Dordogne | E78: 55 | F78: 22 | G78: 165 | H78: 53 | I78: 22 | J78: 179 | K78: 52 | L78: 23 | M78: 151
C79: 33 | D79: Gironde | E79: 218 | F79: 96 | G79: 843 | H79: 209 | I79: 79 | J79: 844 | K79: 205 | L79: 71 | M79: 873
C80: 40 | D80: Landes | E80: 49 | F80: 17 | G80: 136 | H80: 39 | I80: 9 | J80: 112 | K80: 35 | L80: 15 | M80: 119
C81: 47 | D81: Lot-et-Garonne | E81: 21 | F81: 10 | G81: 61 | H81: 25 | I81: 12 | J81: 114 | K81: 26 | L81: 11 | M81: 133
C82: 64 | D82: Pyrénées-Atlantiques | E82: 82 | F82: 23 | G82: 423 | H82: 74 | I82: 20 | J82: 327 | K82: 82 | L82: 28 | M82: 400
C83: 79 | D83: Deux-Sèvres | E83: 25 | F83: 5 | G83: 248 | H83: 21 | I83: 8 | J83: 240 | K83: 24 | L83: 5 | M83: 221
C84: 86 | D84: Vienne | E84: 43 | F84: 16 | G84: 180 | H84: 42 | I84: 10 | J84: 211 | K84: 40 | L84: 14 | M84: 171
C85: 87 | D85: Haute-Vienne | E85: 49 | F85: 9 | G85: 334 | H85: 51 | I85: 11 | J85: 348 | K85: 54 | L85: 15 | M85: 298
B86: Occitanie | C86: 9 | D86: Ariège | E86: 16 | F86: 5 | G86: 66 | H86: 23 | I86: 7 | J86: 115 | K86: 24 | L86: 12 | M86: 88
C87: 11 | D87: Aude | E87: 43 | F87: 8 | G87: 176 | H87: 52 | I87: 13 | J87: 160 | K87: 54 | L87: 25 | M87: 171
C88: 12 | D88: Aveyron | E88: 29 | F88: 12 | G88: 145 | H88: 36 | I88: 8 | J88: 156 | K88: 41 | L88: 18 | M88: 97
C89: 30 | D89: Gard | E89: 100 | F89: 32 | G89: 686 | H89: 102 | I89: 25 | J89: 726 | K89: 113 | L89: 42 | M89: 779
C90: 31 | D90: Haute-Garonne | E90: 177 | F90: 52 | G90: 1531 | H90: 207 | I90: 67 | J90: 1555 | K90: 203 | L90: 62 | M90: 1454
C91: 32 | D91: Gers | E91: 18 | F91: 8 | G91: 36 | H91: 21 | I91: 9 | J91: 70 | K91: 21 | L91: 7 | M91: 40
C92: 34 | D92: Hérault | E92: 162 | F92: 66 | G92: 676 | H92: 154 | I92: 52 | J92: 582 | K92: 152 | L92: 51 | M92: 593
C93: 46 | D93: Lot | E93: 24 | F93: 7 | G93: 80 | H93: 27 | I93: 7 | J93: 99 | K93: 36 | L93: 17 | M93: 124
C94: 48 | D94: Lozère | E94: 7 | F94: 4 | G94: 10 | H94: 14 | I94: 6 | J94: 39 | K94: 18 | L94: 4 | M94: 49
C95: 65 | D95: Hautes-Pyrénées | E95: 20 | F95: 3 | G95: 71 | H95: 19 | I95: 6 | J95: 41 | K95: 19 | L95: 6 | M95: 45
C96: 66 | D96: Pyrénées-Orientales | E96: 57 | F96: 16 | G96: 366 | H96: 58 | I96: 15 | J96: 402 | K96: 68 | L96: 18 | M96: 425
C97: 81 | D97: Tarn | E97: 54 | F97: 19 | G97: 152 | H97: 57 | I97: 19 | J97: 169 | K97: 53 | L97: 16 | M97: 184
C98: 82 | D98: Tarn-et-Garonne | E98: 20 | F98: 9 | G98: 48 | H98: 32 | I98: 13 | J98: 73 | K98: 33 | L98: 13 | M98: 70
B99: Outre-mer | C99: 970 | D99: St-Barthélémy/st-Martin | E99: 0 | F99: 0 | G99: 0 | H99: 1 | I99: 1 | J99: 1 | K99: 0 | L99: 0 | M99: 0
C100: 971 | D100: Guadeloupe | E100: 20 | F100: 5 | G100: 69 | H100: 28 | I100: 12 | J100: 97 | K100: 32 | L100: 12 | M100: 69
C101: 972 | D101: Martinique | E101: 14 | F101: 7 | G101: 52 | H101: 20 | I101: 13 | J101: 76 | K101: 22 | L101: 10 | M101: 63
C102: 973 | D102: Guyane | E102: 7 | F102: 3 | G102: 28 | H102: 13 | I102: 8 | J102: 41 | K102: 10 | L102: 4 | M102: 22
C103: 974 | D103: Réunion | E103: 46 | F103: 13 | G103: 143 | H103: 47 | I103: 12 | J103: 150 | K103: 54 | L103: 19 | M103: 155
C104: 975 | D104: Saint-Pierre-et-Miquelon | E104: 3 | F104: 1 | G104: 3 | H104: 1 | I104: 0 | J104: 1 | K104: 0 | L104: 0 | M104: 0
C105: 976 | D105: Mayotte | E105: 6 | F105: 2 | G105: 6 | H105: 2 | I105: 1 | J105: 7 | K105: 4 | L105: 1 | M105: 5
C106: 987 | D106: Polynésie Française | E106: 3 | F106: 2 | G106: 3 | H106: 7 | I106: 5 | J106: 8 | K106: 3 | L106: 0 | M106: 10
C107: 988 | D107: Nouvelle-Calédonie | E107: 23 | F107: 5 | G107: 57 | H107: 48 | I107: 11 | J107: 125 | K107: 23 | L107: 7 | M107: 43
B108: Pays de la Loire | C108: 44 | D108: Loire-Atlantique | E108: 125 | F108: 53 | G108: 888 | H108: 117 | I108: 46 | J108: 906 | K108: 126 | L108: 53 | M108: 856
C109: 49 | D109: Maine-et-Loire | E109: 75 | F109: 27 | G109: 263 | H109: 82 | I109: 24 | J109: 249 | K109: 72 | L109: 20 | M109: 281
C110: 53 | D110: Mayenne | E110: 26 | F110: 10 | G110: 154 | H110: 21 | I110: 4 | J110: 55 | K110: 24 | L110: 7 | M110: 62
C111: 72 | D111: Sarthe | E111: 39 | F111: 15 | G111: 244 | H111: 47 | I111: 17 | J111: 263 | K111: 47 | L111: 16 | M111: 245
C112: 85 | D112: Vendée | E112: 52 | F112: 18 | G112: 145 | H112: 54 | I112: 20 | J112: 165 | K112: 53 | L112: 23 | M112: 138
B113: Provence-Alpes-Côte d'Azur | C113: 04 | D113: Alpes-de-Haute-Provence | E113: 24 | F113: 9 | G113: 49 | H113: 35 | I113: 14 | J113: 81 | K113: 33 | L113: 13 | M113: 79
C114: 05 | D114: Hautes-Alpes | E114: 30 | F114: 12 | G114: 151 | H114: 27 | I114: 9 | J114: 118 | K114: 27 | L114: 12 | M114: 113
C115: 06 | D115: Alpes-Maritimes | E115: 116 | F115: 37 | G115: 802 | H115: 122 | I115: 41 | J115: 934 | K115: 136 | L115: 59 | M115: 933
C116: 13 | D116: Bouches-du-Rhône | E116: 209 | F116: 73 | G116: 1609 | H116: 229 | I116: 59 | J116: 1623 | K116: 232 | L116: 86 | M116: 1639
C117: 83 | D117: Var | E117: 123 | F117: 48 | G117: 961 | H117: 111 | I117: 37 | J117: 917 | K117: 116 | L117: 45 | M117: 894
C118: 84 | D118: Vaucluse | E118: 58 | F118: 23 | G118: 264 | H118: 63 | I118: 24 | J118: 276 | K118: 77 | L118: 30 | M118: 332
A119: Autre pays ou inconnu | E119: 249 | F119: 106 | G119: 2765 | H119: 303 | I119: 152 | J119: 3117 | K119: 433 | L119: 299 | M119: 3661
A120: Total France | E120: =SUM(E15:E119) -> 8224 | F120: 2831 | G120: 77986 | H120: 8501 | I120: 2710 | J120: 81263 | K120: =SUM(K15:K119) -> 8724 | L120: =SUM(L15:L119) -> 2972 | M120: =SUM(M15:M119) -> 82313
A121: Source : Entrées dépôt légal livres imprimés
A123: Nombre de dépôts et déposants par catégorie de déposants
A124: Livres | B124: 2016 | E124: 2017 | H124: 2018
A125: Catégorie déposant | B125: Nb déposants | C125: Nb nouveaux déposants | D125: Nb dépôts | E125: Nb déposants | F125: Nb nouveaux déposants | G125: Nb dépôts | H125: Nb déposants | I125: Nb nouveaux déposants | J125: Nb dépôts
A126: Administration centrale | B126: 31 | C126: 4 | D126: 435 | E126: 34 | F126: 7 | G126: 434 | H126: 37 | I126: 7 | J126: 351
A127: Associations et assimilés | B127: 1239 | C127: 463 | D127: 3338 | E127: 1339 | F127: 446 | G127: 3498 | H127: 1290 | I127: 444 | J127: 3362
A128: Auteurs auto-édités | B128: 2383 | C128: 1335 | D128: 4339 | E128: 2299 | F128: 1210 | G128: 4466 | H128: 2488 | I128: 1347 | J128: 4765
A129: Autres | B129: 39 | C129: 11 | D129: 136 | E129: 0 | F129: 0 | G129: 0 | H129: 0 | I129: 0 | J129: 0
A130: Club de livres | B130: 2 | C130: 0 | D130: 1856 | E130: 2 | F130: 0 | G130: 1394 | H130: 2 | I130: 0 | J130: 1038
A131: Collectivité locale | B131: 157 | C131: 68 | D131: 273 | E131: 201 | F131: 64 | G131: 361 | H131: 160 | I131: 56 | J131: 280
A132: Collectivités publiques | B132: 217 | C132: 31 | D132: 1675 | E132: 249 | F132: 42 | G132: 1613 | H132: 223 | I132: 31 | J132: 1649
A133: Diffuseur | B133: 125 | C133: 38 | D133: 1213 | E133: 153 | F133: 43 | G133: 1627 | H133: 142 | I133: 38 | J133: 1560
A134: Editeurs étrangers | B134: 207 | C134: 83 | D134: 2247 | E134: 258 | F134: 127 | G134: 2420 | H134: 411 | I134: 290 | J134: 3120
A135: Editeurs professionnels | B135: 3506 | C135: 670 | D135: 60999 | E135: 3611 | F135: 634 | G135: 64138 | H135: 3650 | I135: 631 | J135: 64935
A136: Galerie | B136: 56 | C136: 29 | D136: 178 | E136: 65 | F136: 30 | G136: 156 | H136: 64 | I136: 26 | J136: 141
A137: Imprimeurs professionnels | B137: 29 | C137: 10 | D137: 90 | E137: 26 | F137: 7 | G137: 107 | H137: 21 | I137: 7 | J137: 114
A138: Recherche | B138: 85 | C138: 12 | D138: 595 | E138: 101 | F138: 14 | G138: 570 | H138: 80 | I138: 14 | J138: 466
A139: Sociétés commerciales et assimilées | B139: 148 | C139: 77 | D139: 612 | E139: 163 | F139: 86 | G139: 479 | H139: 156 | I139: 76 | J139: 532
A140: Total Livres | B140: =SUM(B126:B139) -> 8224 | C140: 2831 | D140: 77986 | E140: =SUM(E126:E139) -> 8501 | F140: =SUM(F126:F139) -> 2710 | G140: =SUM(G126:G139) -> 81263 | H140: =SUM(H126:H139) -> 8724 | I140: =SUM(I126:I139) -> 2967 | J140: 82313
A141: Source : Entrées dépôt légal livres imprimés
A143: Liste des 50 principaux déposants par année de dépôt
A144: Livres | B144: Déposant | C144: 2016 | F144: Livres | G144: Déposant | H144: 2017 | K144: Livres | L144: Déposant | M144: 2018
B145: EDILIVRE | C145: 3144 | G145: EDILIVRE | H145: 3452 | L145: EDILIVRE | M145: 4725
B146: HARMATTAN (L') | C146: 2603 | G146: HARMATTAN (L') | H146: 2482 | L146: HARMATTAN (L') | M146: 2406
B147: HACHETTE | C147: 1479 | G147: HACHETTE | H147: 1714 | L147: HACHETTE | M147: 1692
B148: Grand Livre du Mois (Le) | C148: 978 | G148: GALLIMARD (EDITIONS) | H148: 1186 | L148: GALLIMARD (EDITIONS) | M148: 1256
B149: France Loisirs | C149: 878 | G149: BOOKS ON DEMAND | H149: 954 | L149: BOOKS ON DEMAND | M149: 1171
B150: PUBLIBOOK | C150: 770 | G150: France Loisirs | H150: 749 | L150: NET (EDITIONS DU) | M150: 651
B151: GALLIMARD (EDITIONS) | C151: 752 | G151: Grand Livre du Mois (Le) | H151: 645 | L151: Larousse (Editions) | M151: 600
B152: BOOKS ON DEMAND | C152: 709 | G152: NET (EDITIONS DU) | H152: 617 | L152: Flammarion | M152: 591
B153: DUNOD | C153: 588 | G153: POCKET | H153: 580 | L153: HARLEQUIN | M153: 586
B154: POCKET | C154: 580 | G154: Larousse (Editions) | H154: 545 | L154: France Loisirs | M154: 577
B155: GLENAT (EDITIONS) | C155: 543 | G155: ELLIPSES EDITION MARKETING | H155: 534 | L155: POCKET | M155: 541
B156: ACTES SUD | C156: 532 | G156: GLENAT (EDITIONS) | H156: 525 | L156: CLASSIQUES GARNIER | M156: 536
B157: ELLIPSES EDITION MARKETING | C157: 526 | G157: Flammarion | H157: 520 | L157: J'AI LU (EDITIONS) | M157: 533
B158: NET (EDITIONS DU) | C158: 516 | G158: DUNOD | H158: 513 | L158: DUNOD | M158: 529
B159: Flammarion | C159: 512 | G159: ACTES SUD | H159: 497 | L159: CREATESPACE | M159: 519
B160: HARLEQUIN | C160: 510 | G160: EDITEURS DIVERS (NUMERO COLLECTIF AFNIL) | H160: 495 | L160: GLENAT (EDITIONS) | M160: 509
B161: EYROLLES (EDITIONS) | C161: 488 | G161: HARLEQUIN | H161: 486 | L161: Hachette Collections | M161: 506
B162: AUZOU (EDITIONS PHILIPPE) | C162: 473 | G162: CREATESPACE | H162: 471 | L162: ELLIPSES EDITION MARKETING | M162: 506
B163: ALBIN MICHEL (EDITIONS) | C163: 451 | G163: J'AI LU (EDITIONS) | H163: 456 | L163: ACTES SUD | M163: 490
B164: J'AI LU (EDITIONS) | C164: 428 | G164: MARABOUT | H164: 452 | L164: EDITEURS DIVERS (NUMERO COLLECTIF AFNIL) | M164: 481
B165: LIBRAIRIE GENERALE FRANCAISE | C165: 412 | G165: BAYARD EDITIONS | H165: 446 | L165: Grand Livre du Mois (Le) | M165: 461
B166: BAYARD EDITIONS | C166: 392 | G166: PICCOLIA | H166: 445 | L166: ALBIN MICHEL (EDITIONS) | M166: 424
B167: DELCOURT | C167: 392 | G167: Hachette Collections | H167: 427 | L167: MARABOUT | M167: 419
B168: FIRST EDITIONS | C168: 371 | G168: FLEURUS (EDITIONS) | H168: 421 | L168: NATHAN | M168: 418
B169: CLASSIQUES GARNIER (EDITIONS) | C169: 360 | G169: ALBIN MICHEL (EDITIONS) | H169: 413 | L169: LIBRAIRIE GENERALE FRANCAISE | M169: 412
B170: NOUVELLES EDITIONS DE L'UNIVERSITE | C170: 342 | G170: LIBRAIRIE GENERALE FRANCAISE | H170: 413 | L170: DELCOURT | M170: 409
B171: MARABOUT | C171: 340 | G171: FIRST (EDITIONS) | H171: 399 | L171: PRESSES UNIVERSITAIRES DE FRANCE | M171: 373
B172: POINTS | C172: 330 | G172: PUBLIBOOK | H172: 396 | L172: PUBLIBOOK | M172: 368
B173: PIKA (EDITION) | C173: 325 | G173: NOUVELLES EDITIONS DE L'UNIVERSITE | H173: 374 | L173: EYROLLES (EDITIONS) | M173: 364
B174: NATHAN | C174: 325 | G174: DELCOURT | H174: 354 | L174: DG Diffusion | M174: 355
B175: CREATESPACE | C175: 323 | G175: EYROLLES (EDITIONS) | H175: 351 | L175: BAYARD JEUNESSE | M175: 338
B176: EDITEURS DIVERS (NUMERO COLLECTIF AFNIL) | C176: 298 | G176: CLASSIQUES GARNIER | H176: 345 | L176: POINTS | M176: 331
B177: Panini France | C177: 296 | G177: Panini France | H177: 336 | L177: SYDNEY LAURENT (LES EDITIONS) | M177: 315
B178: AMALTHEE (EDITIONS) | C178: 291 | G178: POINTS | H178: 327 | L178: NOUVELLES EDITIONS DE L'UNIVERSITE | M178: 315
B179: MILAN (EDITIONS) | C179: 290 | G179: DG Diffusion | H179: 312 | L179: FIRST (EDITIONS) | M179: 315
B180: Hachette Collections | C180: 278 | G180: CERF (EDITIONS DU) | H180: 294 | L180: KOMIKKU (EDITIONS) | M180: 305
B181: CHAMBRE DES COMMISSAIRES PRISEURS | C181: 269 | G181: CASTERMAN (EDITIONS) | H181: 293 | L181: MILAN (EDITIONS) | M181: 302
B182: LA MARTINIERE (EDITIONS DE) | C182: 265 | G182: PRESSES UNIVERSITAIRES DE FRANCE | H182: 293 | L182: Panini France | M182: 292
B183: PRESSES UNIVERSITAIRES DE FRANCE | C183: 261 | G183: DALLOZ - SIREY - DELMAS - JURIS - ELS | H183: 279 | L183: HUGO ET CIE | M183: 287
B184: STUDYRAMA | C184: 258 | G184: MC Productions | H184: 274 | L184: CASTERMAN (EDITIONS) | M184: 283
B185: TAIFU COMICS | C185: 251 | G185: MILAN (EDITIONS) | H185: 273 | L185: DALLOZ - SIREY - DELMAS - JURIS - ELS | M185: 281
B186: MC Productions | C186: 248 | G186: MILADY | H186: 263 | L186: SAINT HONORE (EDITIONS) | M186: 270
B187: BAUDELAIRE (LES EDITIONS) | C187: 243 | G187: PAROLE ET SILENCE (EDITIONS) | H187: 261 | L187: BOOKELIS | M187: 264
B188: DG Diffusion | C188: 242 | G188: NATHAN | H188: 255 | L188: PIKA (EDITION) | M188: 257
B189: PERSEE (EDITIONS) | C189: 237 | G189: BOOKELIS | H189: 250 | L189: FLEURUS (EDITIONS) | M189: 257
B190: PRESSES UNIVERSITAIRES DE RENNES | C190: 232 | G190: PIKA (EDITION) | H190: 246 | L190: LACOUR (EDITIONS) | M190: 256
B191: GUALINO | C191: 227 | G191: AMALTHEE (EDITIONS) | H191: 235 | L191: MC Productions | M191: 251
B192: MILADY | C192: 225 | G192: ECOLE DES LOISIRS (EDITIONS DE L') | H192: 235 | L192: AUTO-EDITION | M192: 250
B193: AUTO-EDITION | C193: 221 | G193: GUALINO | H193: 233 | L193: CERF (EDITIONS DU) | M193: 246
B194: DALLOZ - SIREY - DELMAS - JURIS | C194: 219 | G194: AUTO-EDITION | H194: 232 | L194: EVIDENCE (EDITIONS) | M194: 232
A195: Total Livres | C195: =SUM(C145:C194) -> 26223 | F195: Total Livres | H195: =SUM(H145:H194) -> 27548 | K195: Total Livres | M195: =SUM(M145:M194) -> 29055
A196: Source : Entrées dépôt légal livres imprimés

Sheet Imprimeurs
A1: Nombre de dépôts répartis par tranches de tirage initial
B2: 2016 | C2: 2017 | D2: 2018
A3: T1 - 0 à 100 | B3: 9766 | C3: 9249 | D3: 9700
A4: T2 - 101 à 300 | B4: 10923 | C4: 11478 | D4: 12810
A5: T3 - 301 à 500 | B5: 4823 | C5: 4474 | D5: 4321
A6: T4 - 501 à 5000 | B6: 33547 | C6: 34692 | D6: 34172
A7: T5 - 5001 à 10000 | B7: 5380 | C7: 5432 | D7: 6055
A8: T6 - 10001 à 50000 | B8: 3617 | C8: 3376 | D8: 2845
A9: T7 - 50001 à 100000 | B9: 174 | C9: 172 | D9: 213
A10: T8 - 100001 et plus | B10: 130 | C10: 118 | D10: 102
A11: Récapitulatif | B11: =SUM(B3:B10) -> 68360 | C11: =SUM(C3:C10) -> 68991 | D11: =SUM(D3:D10) -> 70218
A12: Source : Entrées dépôt légal livres imprimés
A14: Lieu d'impression - synthèse
A15: Pays | B15: 2016 | C15: 2017 | D15: 2018
A16: France | B16: 46768 | C16: 45036 | D16: 46751
A17: Europe (hors France) | B17: 20068 | C17: 21080 | D17: 22906
A18: Asie | B18: 3337 | C18: 3472 | D18: 3673
A19: Amérique | B19: 1105 | C19: 1138 | D19: 1137
A20: Afrique | B20: 41 | C20: 37 | D20: 67
A21: Océanie | B21: 1 | C21: 0 | D21: 3
A22: Total | B22: =SUM(B16:B21) -> 71320 | C22: =SUM(C16:C21) -> 70763 | D22: =SUM(D16:D21) -> 74537
A23: Source : Bibliographie nationale française - Livres
A25: Lieu d'impression - détail France
A26: Nouvelles régions | B26: Code département | C26: Département | D26: 2016 | E26: 2017 | F26: 2018
A27: Auvergne - Rhône Alpes | B27: 01 | C27: Ain | D27: 1627 | E27: 1574 | F27: 1947
B28: 03 | C28: Allier | D28: 45 | E28: 84 | F28: 30
B29: 07 | C29: Ardèche | D29: 103 | E29: 104 | F29: 143
B30: 15 | C30: Cantal | D30: 17 | E30: 33 | F30: 25
B31: 26 | C31: Drome | D31: 121 | E31: 130 | F31: 154
B32: 38 | C32: Isère | D32: 294 | E32: 178 | F32: 234
B33: 42 | C33: Loire | D33: 1012 | E33: 1105 | F33: 1056
B34: 43 | C34: Haute-Loire | D34: 40 | E34: 39 | F34: 44
B35: 63 | C35: Puy-de-Dôme | D35: 650 | E35: 616 | F35: 622
B36: 69 | C36: Rhône | D36: 200 | E36: 210 | F36: 211
B37: 73 | C37: Savoie | D37: 30 | E37: 12 | F37: 7
B38: 74 | C38: Haute-Savoie | D38: 78 | E38: 67 | F38: 43
A39: Bourgogne - Franche-Comté | B39: 21 | C39: Cote d'Or | D39: 270 | E39: 195 | F39: 193
B40: 25 | C40: Doubs | D40: 354 | E40: 314 | F40: 355
B41: 39 | C41: Jura | D41: 17 | E41: 25 | F41: 22
B42: 58 | C42: Nièvre | D42: 1816 | E42: 2035 | F42: 2614
B43: 70 | C43: Haute-Saône | D43: 5 | E43: 9 | F43: 4
B44: 71 | C44: Saône-et-Loire | D44: 143 | E44: 101 | F44: 78
B45: 89 | C45: Yonne | D45: 57 | E45: 35 | F45: 56
B46: 90 | C46: Territoire de Belfort | D46: 25 | E46: 25 | F46: 33
A47: Bretagne | B47: 22 | C47: Côtes-d'Armor | D47: 354 | E47: 559 | F47: 602
B48: 29 | C48: Finistère | D48: 500 | E48: 561 | F48: 468
B49: 35 | C49: Ille-et-Vilaine | D49: 291 | E49: 561 | F49: 301
B50: 56 | C50: Morbihan | D50: 50 | E50: 58 | F50: 50
A51: Centre - Val-de-Loire | B51: 18 | C51: Cher | D51: 1121 | E51: 977 | F51: 1113
B52: 28 | C52: Eure-et-Loir | D52: 45 | E52: 7 | F52: 50
B53: 36 | C53: Indre | D53: 45 | E53: 43 | F53: 31
B54: 37 | C54: Indre-et-Loire | D54: 1197 | E54: 1046 | F54: 1217
B55: 41 | C55: Loir-et-Cher | D55: 21 | E55: 22 | F55: 18
B56: 45 | C56: Loiret | D56: 614 | E56: 644 | F56: 695
A57: Corse | B57: 20 | C57: Corse | D57: 9 | E57: 10 | F57: 18
A58: Grand-Est | B58: 08 | C58: Ardennes | D58: 11 | E58: 62 | F58: 17
B59: 10 | C59: Aube | D59: 26 | E59: 33 | F59: 31
B60: 51 | C60: Marne | D60: 67 | E60: 40 | F60: 30
B61: 52 | C61: Haute-Marne | D61: 696 | E61: 864 | F61: 821
B62: 54 | C62: Meurthe-et-Moselle | D62: 180 | E62: 261 | F62: 177
B63: 55 | C63: Meuse | D63: 9 | E63: 6 | F63: 7
B64: 57 | C64: Moselle | D64: 60 | E64: 56 | F64: 66
B65: 67 | C65: Bas-Rhin | D65: 114 | E65: 91 | F65: 117
B66: 68 | C66: Haut-Rhin | D66: 70 | E66: 65 | F66: 52
B67: 88 | C67: Vosges | D67: 23 | E67: 23 | F67: 63
A68: Hauts-de-France | B68: 02 | C68: Aisne | D68: 74 | E68: 57 | F68: 165
B69: 59 | C69: Nord | D69: 4238 | E69: 4158 | F69: 5316
B70: 60 | C70: Oise | D70: 66 | E70: 20 | F70: 44
B71: 62 | C71: Pas-de-Calais | D71: 149 | E71: 140 | F71: 131
B72: 80 | C72: Somme | D72: 98 | E72: 134 | F72: 128
A73: Ile-de-France | B73: 75 | C73: Paris | D73: 2544 | E73: 2129 | F73: =SUM(K73:L73) -> 0
B74: 77 | C74: Seine-et-Marne | D74: 121 | E74: 86 | F74: 99
B75: 78 | C75: Yvelines | D75: 993 | E75: 930 | F75: 981
B76: 91 | C76: Essonne | D76: 864 | E76: 812 | F76: 1005
B77: 92 | C77: Hauts-de-Seine | D77: 1078 | E77: 667 | F77: 464
B78: 93 | C78: Seine-Saint-Denis | D78: 984 | E78: 1331 | F78: 1398
B79: 94 | C79: Val-de-Marne | D79: 145 | E79: 155 | F79: 144
B80: 95 | C80: Val-d'Oise | D80: 1371 | E80: 748 | F80: 943
A81: Normandie | B81: 14 | C81: Calvados | D81: 5381 | E81: 4877 | F81: 5289
B82: 27 | C82: Eure | D82: 1561 | E82: 1532 | F82: 1274
B83: 50 | C83: Manche | D83: 29 | E83: 26 | F83: 26
B84: 61 | C84: Orne | D84: 1943 | E84: 1839 | F84: 1991
B85: 76 | C85: Seine-Maritime | D85: 55 | E85: 63 | F85: 50
A86: Nouvelle-Aquitaine | B86: 16 | C86: Charente | D86: 87 | E86: 105 | F86: 77
B87: 17 | C87: Charente-Maritime | D87: 166 | E87: 139 | F87: 164
B88: 19 | C88: Corrèze | D88: 156 | E88: 78 | F88: 113
B89: 23 | C89: Creuse | D89: 3 | E89: 3 | F89: 2
B90: 24 | C90: Dordogne | D90: 64 | E90: 121 | F90: 63
B91: 33 | C91: Gironde | D91: 1014 | E91: 1079 | F91: 1233
B92: 40 | C92: Landes | D92: 4 | E92: 16 | F92: 5
B93: 47 | C93: Lot-et-Garonne | D93: 39 | E93: 50 | F93: 118
B94: 64 | C94: Pyrénées-Atlantiques | D94: 689 | E94: 705 | F94: 925
B95: 79 | C95: Deux-Sèvres | D95: 18 | E95: 116 | F95: 62
B96: 86 | C96: Vienne | D96: 782 | E96: 717 | F96: 979
B97: 87 | C97: Haute-Vienne | D97: 81 | E97: 120 | F97: 139
A98: Occitanie | B98: 09 | C98: Ariège | D98: 23 | E98: 34 | F98: 39
B99: 11 | C99: Aude | D99: 29 | E99: 23 | F99: 24
B100: 12 | C100: Aveyron | D100: 407 | E100: 369 | F100: 331
B101: 30 | C101: Gard | D101: 416 | E101: 511 | F101: 493
B102: 31 | C102: Haute-Garonne | D102: 460 | E102: 535 | F102: 540
B103: 32 | C103: Gers | D103: 8 | E103: 11 | F103: 13
B104: 34 | C104: Hérault | D104: 314 | E104: 252 | F104: 237
B105: 46 | C105: Lot | D105: 719 | E105: 484 | F105: 218
B106: 48 | C106: Lozère | D106: 3 | E106: 17 | F106: 20
B107: 65 | C107: Hautes-Pyrénées | D107: 36 | E107: 16 | F107: 6
B108: 66 | C108: Pyrénées-Orientales | D108: 144 | E108: 153 | F108: 116
B109: 81 | C109: Tarn | D109: 231 | E109: 242 | F109: 259
B110: 82 | C110: Tarn-et-Garonne | D110: 9 | E110: 9 | F110: 13
A111: Outre-mer | D111: 107 | E111: 104 | F111: 159
A112: Pays de la Loire | B112: 44 | C112: Loire-Atlantique | D112: 108 | E112: 100 | F112: 99
B113: 49 | C113: Maine-et-Loire | D113: 159 | E113: 121 | F113: 175
B114: 53 | C114: Mayenne | D114: 2414 | E114: 2341 | F114: 2441
B115: 72 | C115: Sarthe | D115: 656 | E115: 586 | F115: 595
B116: 85 | C116: Vendée | D116: 1668 | E116: 1713 | F116: 1843
A117: Provence-Alpes-Côte d'Azur | B117: 04 | C117: Alpes-de-Haute-Provence | D117: 63 | E117: 34 | F117: 38
B118: 05 | C118: Hautes-Alpes | D118: 69 | E118: 62 | F118: 62
B119: 06 | C119: Alpes-Maritimes | D119: 187 | E119: 187 | F119: 234
B120: 13 | C120: Bouches-du-Rhône | D120: 1087 | E120: 1067 | F120: 1438
B121: 83 | C121: Var | D121: 180 | E121: 149 | F121: 139
B122: 84 | C122: Vaucluse | D122: 38 | E122: 70 | F122: 66
A123: Département inconnu | D123: 29 | E123: 13 | F123: 10
A124: Total | D124: =SUM(D27:D123) -> 46768 | E124: =SUM(E27:E123) -> 45036 | F124: =SUM(F27:F123) -> 46751
A125: Source : Bibliographie nationale française - Livres
A127: Lieu d'impression - détail par pays
A128: Zone géoographique | B128: Pays | C128: 2016 | D128: 2017 | E128: 2018
A129: France | C129: 46768 | D129: 45036 | E129: 46751
A130: Europe (hors France) | B130: Albanie | C130: 1
B131: Allemagne | C131: 1685 | D131: 1847 | E131: 2032
B132: Andorre | C132: 1
B133: Angleterre | C133: 18 | E133: 12
B134: Autriche | C134: 10 | D134: 17 | E134: 10
B135: Belgique | C135: 1506 | D135: 1439 | E135: 1548
B136: Biélorussie | D136: 1 | E136: 2
B137: Bosnie-Herzégovine | C137: 29 | D137: 23 | E137: 45
B138: Bulgarie | C138: 600 | D138: 780 | E138: 1012
B139: Chypre
B140: Croatie | C140: 20 | D140: 29 | E140: 51
B141: Danemark | C141: 15 | D141: 33 | E141: 30
B142: Espagne | C142: 5194 | D142: 5761 | E142: 6342
B143: Estonie | C143: 7 | D143: 19 | E143: 8
B144: Europe | C144: 792
B145: Finlande | C145: 1 | D145: 2
B146: Géorgie
B147: Grande-Bretagne | C147: 160
B148: Grèce | C148: 23 | D148: 13 | E148: 12
B149: Hongrie | C149: 9 | D149: 14 | E149: 16
B150: Irlande | C150: 3 | D150: 22 | E150: 2
B151: Italie | C151: 5290 | D151: 5368 | E151: 5286
B152: Lettonie | C152: 152 | D152: 151 | E152: 205
B153: Lituanie | C153: 261 | D153: 267 | E153: 318
B154: Luxembourg | C154: 17 | D154: 16 | E154: 19
B155: Macédoine | D155: 2 | E155: 7
B156: Malte | C156: 4 | D156: 4
B157: Moldavie
B158: Monaco | C158: 3 | D158: 3 | E158: 7
B159: Monténégro
B160: Norvège
B161: Pays basque
B162: Pays-Bas | C162: 104 | D162: 113 | E162: 123
B163: Pologne | C163: 1092 | D163: 1217 | E163: 1845
B164: Portugal | C164: 136 | D164: 136 | E164: 237
B165: République tchèque | C165: 627 | D165: 760 | E165: 743
B166: Roumanie | C166: 543 | D166: 435 | E166: 444
B167: Royaume-Uni | C167: 75 | D167: 342 | E167: 275
B168: Russie | C168: 2 | D168: 2 | E168: 5
B169: Serbie | C169: 111 | D169: 85 | E169: 96
B170: Slovaquie | C170: 423 | D170: 365 | E170: 319
B171: Slovénie | C171: 545 | D171: 628 | E171: 675
B172: Suède | C172: 2
B173: Suisse | C173: 223 | D173: 324 | E173: 211
B174: Ukraine | C174: 2 | D174: 12 | E174: 12
B175: Union européenne | C175: 382 | D175: 850 | E175: 957
A176: Asie | B176: Asie | C176: 13 | D176: 28 | E176: 16
B177: Cambodge | C177: 1 | E177: 1
B178: Chine | C178: 2890 | D178: 3099 | E178: 3308
B179: Corée | C179: 3
B180: Corée du Sud | C180: 14 | D180: 13 | E180: 6
B181: Émirats arabes unis | C181: 5 | D181: 2 | E181: 19
B182: Hong Kong | D182: 5 | E182: 2
B183: Inde | C183: 38 | D183: 60 | E183: 54
B184: Indonésie | C184: 3
B185: Iran | D185: 2
B186: Israël | C186: 18 | D186: 4 | E186: 5
B187: Japon | C187: 2 | E187: 1
B188: Jordanie
B189: Laos
B190: Liban | C190: 72 | D190: 73 | E190: 44
B191: Malaisie | C191: 205 | D191: 125 | E191: 163
B192: Moyen-Orient | C192: 10
B193: Népal | D193: 2
B194: Philippines | C194: 1
B195: Qatar
B196: Singapour | D196: 14 | E196: 10
B197: Sri Lanka | C197: 2
B198: Syrie
B199: Taïwan | C199: 2
B200: Thaïlande | C200: 4 | D200: 2 | E200: 3
B201: Turquie | C201: 51 | D201: 42 | E201: 40
B202: Viêt-Nam | C202: 3 | D202: 1 | E202: 1
A203: Amérique | B203: Argentine | D203: 2 | E203: 1
... 34 more rows

Sheet Genres
A1: Nombre de livres signalés dans la Bibliographie nationale française - répartition par classe thématique
B2: 2016 | C2: 2017 | D2: 2018
A3: 0 Généralités
A4: 000. Généralités | B4: 59 | C4: 46 | D4: 70
A5: 004. Informatique | B5: 349 | C5: 309 | D5: 351
A6: 010. Bibliographie | B6: 4 | C6: 8 | D6: 3
A7: 020. Sciences de l'information | B7: 75 | C7: 62 | D7: 58
A8: 030. Encyclopédies générales | B8: 37 | C8: 68 | D8: 61
A9: 060. Organisations à vocation savante | B9: 9 | C9: 19 | D9: 26
A10: 070. Presse et édition | B10: 67 | C10: 97 | D10: 98
A11: 090. Bibliophilie | B11: 93 | C11: 21 | D11: 24
A12: 1 Philosophie et psychologie
A13: 100. Philosophie | B13: 1000 | C13: 1012 | D13: 1120
A14: 130. Esotérisme, phénomènes paranormaux | B14: 931 | C14: 871 | D14: 973
A15: 150. Psychologie, psychanalyse | B15: 1171 | C15: 1230 | D15: 1466
A16: 2 Religion et théologie
A17: 200. Religion (ouvrages généraux et comparatifs) | B17: 200 | C17: 169 | D17: 196
A18: 220. Bible, judaïsme, christianisme | B18: 2289 | C18: 2224 | D18: 2045
A19: 290. Islam, religions orientales et anciennes, autres religions | B19: 513 | C19: 459 | D19: 548
A20: 3 Sciences sociales
A21: 300. Sciences sociales | B21: 1282 | C21: 1430 | D21: 1437
A22: 320. Sciences politiques | B22: 1264 | C22: 1573 | D22: 1264
A23: 330. Economie | B23: 1219 | C23: 1266 | D23: 1234
A24: 340. Droit | B24: 1768 | C24: 2044 | D24: 1975
A25: 350. Administration publique | B25: 474 | C25: 383 | D25: 482
A26: 355. Art et science militaires | B26: 151 | C26: 224 | D26: 199
A27: 360. Problèmes et services sociaux | B27: 971 | C27: 985 | D27: 1040
A28: 370. Education et enseignement | B28: 716 | C28: 775 | D28: 885
A29: 380. Commerce, communication, transports | B29: 197 | C29: 228 | D29: 244
A30: 390. Ethnologie, anthropologie, folklore | B30: 207 | C30: 203 | D30: 222
A31: 4 Langues et linguistique
A32: 400. Langues et linguistique | B32: 802 | C32: 927 | D32: 902
A33: 5 Sciences pures
A34: 500. Sciences (généralités) | B34: 118 | C34: 114 | D34: 145
A35: 510. Mathématiques | B35: 265 | C35: 241 | D35: 277
A36: 520. Astronomie | B36: 81 | C36: 82 | D36: 91
A37: 530. Physique | B37: 157 | C37: 143 | D37: 153
A38: 540. Chimie, minéralogie, cristallographie | B38: 43 | C38: 55 | D38: 45
A39: 550. Sciences de la Terre | B39: 113 | C39: 89 | D39: 121
A40: 560. Paléontologie | B40: 44 | C40: 41 | D40: 56
A41: 570. Sciences de la vie | B41: 159 | C41: 235 | D41: 252
A42: 580. Botanique | B42: 108 | C42: 130 | D42: 158
A43: 590. Zoologie | B43: 254 | C43: 309 | D43: 372
A44: 6 Sciences appliquées
A45: 600. Sciences appliquées | B45: 15 | C45: 27 | D45: 27
A46: 610. Sciences médicales et paramédicales | B46: 2094 | C46: 1935 | D46: 2446
A47: 620. Sciences de l'ingénieur | B47: 702 | C47: 569 | D47: 737
A48: 630. Agriculture, élevage | B48: 428 | C48: 574 | D48: 601
A49: 640. Economie domestique, hôtellerie | B49: 1374 | C49: 1825 | D49: 1815
A50: 650. Gestion et organisation de l'entreprise | B50: 1207 | C50: 1187 | D50: 1162
A51: 660. Génie chimique et technologies connexes | B51: 62 | C51: 50 | D51: 71
A52: 670. Industries | B52: 25 | C52: 18 | D52: 20
A53: 680. Métiers divers | B53: 43 | C53: 32 | D53: 34
A54: 690. Bâtiment | B54: 79 | C54: 60 | D54: 84
A55: 7 Arts, jeux, sports
A56: 700. Arts | B56: 1441 | C56: 1117 | D56: 1153
A57: 710. Urbanisme | B57: 114 | C57: 121 | D57: 94
A58: 720. Architecture | B58: 497 | C58: 518 | D58: 514
A59: 730. Arts plastiques, sculpture | B59: 313 | C59: 310 | D59: 266
A60: 740. Dessin, arts décoratifs, artisanat d'art | B60: 1172 | C60: 1206 | D60: 1299
A61: 750. Peinture | B61: 712 | C61: 731 | D61: 765
A62: 760. Arts graphiques | B62: 84 | C62: 80 | D62: 67
A63: 770. Photographie | B63: 843 | C63: 848 | D63: 804
A64: 780. Musique | B64: 371 | C64: 392 | D64: 433
A65: 790. Spectacles et loisirs (généralités) | B65: 38 | C65: 34 | D65: 38
A66: 791. Audiovisuel | B66: 482 | C66: 508 | D66: 481
A67: 792. Représentations scéniques | B67: 125 | C67: 134 | D67: 158
A68: 793. Jeux | B68: 613 | C68: 686 | D68: 802
A69: 796. Sports | B69: 446 | C69: 425 | D69: 615
A70: 8 Littérature et techniques d'écriture
A71: 800. Histoire et critique littéraires | B71: 1311 | C71: 1137 | D71: 1088
A72: 801. Poésie | B72: 3387 | C72: 3341 | D72: 3808
A73: 802. Théâtre | B73: 890 | C73: 935 | D73: 846
A74: 803. Romans et fiction romanesque | B74: 16155 | C74: 15274 | D74: 17761
A75: 804. Essais littéraires et écrits divers | B75: 2099 | C75: 1875 | D75: 2120
A76: 805. Bandes dessinées | B76: 4912 | C76: 4164 | D76: 4792
A77: 809. Littérature pour la jeunesse | B77: 7276 | C77: 7346 | D77: 7748
A78: 9 Histoire, géographie et biographies
A79: 900. Histoire et géographie (généralités) | B79: 180 | C79: 157 | D79: 175
A80: 910. Géographie, tourisme (guides) et voyages | B80: 1381 | C80: 1466 | D80: 1493
A81: 920. Biographies et généalogie | B81: 5209 | C81: 5172 | D81: 6386
A82: 930. Préhistoire et histoire ancienne | B82: 381 | C82: 339 | D82: 321
A83: 940. Histoire médiévale, moderne et contemporaine (sauf la France) | B83: 914 | C83: 970 | D83: 997
A84: 944. Histoire de la France (depuis 486) | B84: 1365 | C84: 1336 | D84: 1422
A85: Total général | B85: =SUM(B4:B84) -> 75930 | C85: =SUM(C4:C84) -> 74971 | D85: =SUM(D4:D84) -> 82036
A86: Source : Bibliographie nationale française - Livres
A89: Nombre de livres par genres (documentaires et fictions)
A90: Genres | B90: 2016 | C90: 2017 | D90: 2018
A91: Autres | B91: 491 | C91: 325 | D91: 331
A92: Documentaires | B92: 42552 | C92: 43274 | D92: 46326
A93: Fiction | B93: 32421 | C93: 30892 | D93: 34846
A94: Mixte | B94: 466 | C94: 480 | D94: 533
A95: Total | B95: =SUM(B91:B94) -> 75930 | C95: 74971 | D95: =SUM(D91:D94) -> 82036
A96: Source : Bibliographie nationale française - Livres
A97: La catégorie « Autres » réunit les textes sacrés, les textes classiques, les correspondances et les mémoires. Dans la catégorie mixte, on classe notamment les ouvrages qui contiennent un texte de fiction et une documentation très développée autour de ce texte.
A99: Nombre de publications officielles (PO) - répartion par classe thématique
B100: 2016 | C100: 2017 | D100: 2018
A101: Indice | B101: PO | C101: PO | D101: PO
A102: 0 Généralités
A103: 000. Généralités | B103: 7 | C103: 4 | D103: 6
A104: 004. Informatique | B104: 4 | C104: 3 | D104: 3
A105: 010. Bibliographie | B105: 4 | C105: 2
A106: 020. Sciences de l'information | B106: 50 | C106: 26 | D106: 17
A107: 030. Encyclopédies générales | B107: 2 | D107: 1
A108: 060. Organisations à vocation savante | B108: 3 | C108: 10 | D108: 14
A109: 070. Presse et édition | B109: 9 | C109: 16 | D109: 15
A110: 090. Bibliophilie | B110: 9 | C110: 7 | D110: 11
A111: 1 Philosophie et psychologie
A112: 100. Philosophie | B112: 43 | C112: 54 | D112: 38
A113: 130. Esotérisme, phénomènes paranormaux | B113: 2 | D113: 2
A114: 150. Psychologie, psychanalyse | B114: 9 | C114: 8 | D114: 8
A115: 2 Religion et théologie
A116: 200. Religion (ouvrages généraux et comparatifs) | B116: 19 | C116: 9 | D116: 9
A117: 220. Bible, judaïsme, christianisme | B117: 63 | C117: 27 | D117: 51
A118: 290. Islam, religions orientales et anciennes, autres religions | B118: 23 | C118: 10 | D118: 13
A119: 3 Sciences sociales
A120: 300. Sciences sociales | B120: 161 | C120: 217 | D120: 154
A121: 320. Sciences politiques | B121: 76 | C121: 77 | D121: 82
A122: 330. Economie | B122: 215 | C122: 168 | D122: 221
A123: 340. Droit | B123: 171 | C123: 177 | D123: 150
A124: 350. Administration publique | B124: 220 | C124: 115 | D124: 246
A125: 355. Art et science militaires | B125: 18 | C125: 48 | D125: 35
A126: 360. Problèmes et services sociaux | B126: 132 | C126: 121 | D126: 141
A127: 370. Education et enseignement | B127: 89 | C127: 97 | D127: 119
A128: 380. Commerce, communication, transports | B128: 23 | C128: 31 | D128: 45
A129: 390. Ethnologie, anthropologie, folklore | B129: 25 | C129: 13 | D129: 17
A130: 4 Langues et linguistique
A131: 400. Langues et linguistique | B131: 54 | C131: 48 | D131: 54
A132: 5 Sciences pures
A133: 500. Sciences (généralités) | B133: 15 | C133: 11 | D133: 15
A134: 510. Mathématiques | B134: 15 | C134: 13 | D134: 24
A135: 520. Astronomie | B135: 2 | C135: 8 | D135: 4
A136: 530. Physique | B136: 7 | C136: 10 | D136: 3
A137: 540. Chimie, minéralogie, cristallographie | B137: 2 | C137: 1 | D137: 3
A138: 550. Sciences de la Terre | B138: 15 | C138: 11 | D138: 22
A139: 560. Paléontologie | B139: 2 | D139: 6
A140: 570. Sciences de la vie | B140: 14 | C140: 17 | D140: 54
A141: 580. Botanique | B141: 10 | C141: 10 | D141: 11
A142: 590. Zoologie | B142: 13 | C142: 6 | D142: 24
A143: 6 Sciences appliquées
A144: 600. Sciences appliquées | B144: 1 | C144: 1 | D144: 5
A145: 610. Sciences médicales et paramédicales | B145: 32 | C145: 31 | D145: 36
A146: 620. Sciences de l'ingénieur | B146: 57 | C146: 65 | D146: 112
A147: 630. Agriculture, élevage | B147: 22 | C147: 30 | D147: 28
A148: 640. Economie domestique, hôtellerie | B148: 6 | C148: 13 | D148: 4
A149: 650. Gestion et organisation de l'entreprise | B149: 35 | C149: 19 | D149: 27
A150: 660. Génie chimique et technologies connexes | B150: 5 | C150: 4 | D150: 4
A151: 670. Industries | B151: 2 | D151: 1
A152: 680. Métiers divers | B152: 4 | D152: 3
A153: 690. Bâtiment | B153: 12 | C153: 14 | D153: 8
A154: 7 Arts, jeux, sports
A155: 700. Arts | B155: 273 | C155: 290 | D155: 310
A156: 710. Urbanisme | B156: 38 | C156: 23 | D156: 21
A157: 720. Architecture | B157: 109 | C157: 109 | D157: 108
A158: 730. Arts plastiques, sculpture | B158: 49 | C158: 81 | D158: 61
A159: 740. Dessin, arts décoratifs, artisanat d'art | B159: 55 | C159: 110 | D159: 83
A160: 750. Peinture | B160: 104 | C160: 111 | D160: 144
A161: 760. Arts graphiques | B161: 21 | C161: 25 | D161: 20
A162: 770. Photographie | B162: 81 | C162: 92 | D162: 74
A163: 780. Musique | B163: 39 | C163: 43 | D163: 28
A164: 790. Spectacles et loisirs (généralités) | B164: 3 | C164: 4 | D164: 5
A165: 791. Audiovisuel | B165: 135 | C165: 51 | D165: 39
A166: 792. Représentations scéniques | B166: 30 | C166: 27 | D166: 27
A167: 793. Jeux | B167: 6 | C167: 4 | D167: 5
A168: 796. Sports | B168: 12 | C168: 14 | D168: 26
A169: 8 Littérature et techniques d'écriture
A170: 800. Histoire et critique littéraires | B170: 195 | C170: 172 | D170: 149
A171: 801. Poésie | B171: 11 | C171: 8 | D171: 11
A172: 802. Théâtre | B172: 6 | C172: 3 | D172: 14
A173: 803. Romans et fiction romanesque | B173: 12 | C173: 5 | D173: 15
A174: 804. Essais littéraires et écrits divers | B174: 19 | C174: 12 | D174: 16
A175: 805. Bandes dessinées | B175: 4 | D175: 10
A176: 809. Littérature pour la jeunesse | B176: 18 | C176: 10 | D176: 26
A177: 9 Histoire, géographie et biographies
A178: 900. Histoire et géographie (généralités) | B178: 13 | C178: 12 | D178: 8
A179: 910. Géographie, tourisme (guides) et voyages | B179: 21 | C179: 24 | D179: 15
A180: 920. Biographies et généalogie | B180: 111 | C180: 102 | D180: 100
A181: 930. Préhistoire et histoire ancienne | B181: 155 | C181: 106 | D181: 93
A182: 940. Histoire médiévale, moderne et contemporaine (sauf la France) | B182: 141 | C182: 151 | D182: 127
A183: 944. Histoire de la France (depuis 486) | B183: 137 | C183: 133 | D183: 117
A184: Total | B184: 3500 | C184: =SUM(C102:C183) -> 3274 | D184: =SUM(D103:D183) -> 3498
A185: Source : Bibliographie nationale française - Livres
A187: Nombre de publications jeunesse - répartition par classe thématique
B188: 2016 | C188: 2017 | D188: 2018
A189: Classes
A190: 0 Généralités
A191: 000. Généralités | B191: 4 | C191: 3 | D191: 4
A192: 004. Informatique | B192: 21 | C192: 16 | D192: 8
A193: 010. Bibliographie
A194: 020. Sciences de l'information | C194: 1
A195: 030. Encyclopédies générales | B195: 12 | C195: 38 | D195: 32
A196: 060. Organisations à vocation savante
A197: 070. Presse et édition | D197: 1
A198: 090. Bibliophilie
A199: 1 Philosophie et psychologie
A200: 100. Philosophie | B200: 8 | C200: 8 | D200: 13
A201: 130. Esotérisme, phénomènes paranormaux | B201: 5 | C201: 12 | D201: 4
A202: 150. Psychologie, psychanalyse | B202: 24 | C202: 44 | D202: 52
A203: 2 Religion et théologie
A204: 200. Religion (ouvrages généraux et comparatifs) | B204: 14 | C204: 4 | D204: 8
... 171 more rows

Sheet Pays
A1: Répartition par pays de publication - synthèse
A3: Année | B3: Cadre | C3: France | D3: Belgique | E3: Canada | F3: Coédition | G3: Suisse | H3: Autres | I3: Allemagne | J3: Monaco | K3: Grande-Bretagne | L3: Italie | M3: Espagne | N3: Etats-Unis
A4: 2016 | B4: 0XX | C4: 682 | D4: 1 | F4: 6 | G4: 2 | I4: 1 | J4: 1
B5: 1XX | C5: 2795 | D5: 35 | E5: 168 | F5: 21 | G5: 67 | H5: 4 | J5: 8 | L5: 3 | M5: 1
B6: 2XX | C6: 2776 | D6: 42 | E6: 19 | F6: 62 | G6: 55 | H6: 35 | I6: 3 | J6: 1 | L6: 9
B7: 3XX | C7: 7834 | D7: 245 | E7: 32 | F7: 53 | G7: 49 | H7: 15 | I7: 1 | J7: 16 | L7: 4
B8: 4XX | C8: 758 | D8: 15 | E8: 1 | F8: 14 | G8: 3 | H8: 6 | I8: 3 | J8: 1 | M8: 1
B9: 5XX | C9: 1280 | D9: 22 | E9: 10 | F9: 5 | G9: 15 | H9: 3 | I9: 5 | K9: 2
B10: 6XX | C10: 5807 | D10: 49 | E10: 49 | F10: 17 | G10: 45 | H10: 4 | I10: 30 | J10: 23 | K10: 3 | L10: 1 | N10: 1
B11: 7XX | C11: 6645 | D11: 117 | E11: 11 | F11: 141 | G11: 72 | H11: 25 | I11: 201 | J11: 7 | K11: 9 | L11: 21 | N11: 2
B12: 8XX | C12: 34689 | D12: 733 | E12: 226 | F12: 100 | G12: 145 | H12: 79 | I12: 16 | J12: 30 | K12: 6 | L12: 3 | M12: 1 | N12: 2
B13: 9XX | C13: 9117 | D13: 34 | E13: 37 | F13: 60 | G13: 42 | H13: 43 | I13: 13 | J13: 26 | K13: 13 | L13: 27 | M13: 18
A14: Total 2016 | C14: 72383 | D14: 1293 | E14: 553 | F14: 479 | G14: 495 | H14: 214 | I14: 273 | J14: 113 | K14: 33 | L14: 68 | M14: 21 | N14: 5
A16: Année | B16: Cadre | C16: France | D16: Belgique | E16: Canada | F16: Coédition | G16: Suisse | H16: Autres | I16: Allemagne | J16: Monaco | K16: Grande-Bretagne | L16: Italie | M16: Espagne | N16: Etats-Unis
A17: 2017 | B17: 0XX | C17: 614 | D17: 3 | E17: 2 | F17: 4 | G17: 1 | H17: 3 | I17: 1 | K17: 1 | M17: 1
B18: 1XX | C18: 2823 | D18: 35 | E18: 174 | F18: 14 | G18: 54 | H18: 8 | I18: 1 | J18: 2 | L18: 2
B19: 2XX | C19: 2395 | D19: 58 | E19: 26 | F19: 50 | G19: 272 | H19: 44 | I19: 1 | J19: 4 | L19: 2
B20: 3XX | C20: 8558 | D20: 288 | E20: 36 | F20: 120 | G20: 49 | H20: 36 | I20: 3 | J20: 15 | K20: 1 | L20: 2 | M20: 2 | N20: 1
B21: 4XX | C21: 880 | D21: 7 | E21: 2 | F21: 29 | G21: 1 | H21: 3 | K21: 5
B22: 5XX | C22: 1378 | D22: 18 | E22: 13 | F22: 1 | G22: 19 | H22: 1 | I22: 8 | K22: 1
B23: 6XX | C23: 5955 | D23: 59 | E23: 50 | F23: 28 | G23: 75 | H23: 4 | I23: 76 | J23: 20 | K23: 8 | M23: 2
B24: 7XX | C24: 6559 | D24: 111 | E24: 7 | F24: 155 | G24: 74 | H24: 20 | I24: 96 | J24: 8 | K24: 25 | L24: 49 | M24: 1 | N24: 5
B25: 8XX | C25: 32759 | D25: 707 | E25: 208 | F25: 113 | G25: 159 | H25: 38 | I25: 15 | J25: 27 | K25: 3 | L25: 3 | M25: 40 | N25: 1
B26: 9XX | C26: 9118 | D26: 67 | E26: 25 | F26: 54 | G26: 77 | H26: 24 | I26: 20 | J26: 21 | K26: 2 | L26: 19 | M26: 12 | N26: 1
A27: Total 2017 | C27: =SUM(C17:C26) -> 71039 | D27: 1353 | E27: 543 | F27: 568 | G27: 781 | H27: 181 | I27: 221 | J27: 97 | K27: 46 | L27: 77 | M27: 58 | N27: 8
A29: Année | B29: Cadre | C29: France | D29: Belgique | E29: Canada | F29: Coédition | G29: Suisse | H29: Autres | I29: Allemagne | J29: Monaco | K29: Grande-Bretagne | L29: Italie | M29: Espagne | N29: Etats-Unis
A30: 2018 | B30: 0XX | C30: 675 | D30: 6 | F30: 6 | G30: 2 | H30: 0 | N30: 2 | O30: =SUM(C30:N30) -> 691
B31: 1XX | C31: 3157 | D31: 33 | E31: 160 | F31: 16 | G31: 171 | H31: 11 | I31: 2 | J31: 2 | L31: 6 | M31: 1 | O31: =SUM(C31:N31) -> 3559
B32: 2XX | C32: 2450 | D32: 45 | E32: 22 | F32: 43 | G32: 143 | H32: 17 | J32: 2 | K32: 1 | L32: 6 | M32: 60 | O32: 2789
B33: 3XX | C33: 8303 | D33: 396 | E33: 66 | F33: 95 | G33: 29 | H33: 68 | I33: 4 | J33: 10 | K33: 2 | L33: 3 | M33: 2 | N33: 4 | O33: 8982
B34: 4XX | C34: 826 | D34: 18 | F34: 45 | G34: 3 | H34: 1 | I34: 1 | J34: 6 | K34: 1 | M34: 1 | O34: 902
B35: 5XX | C35: 1609 | D35: 11 | E35: 7 | F35: 3 | G35: 17 | H35: 3 | I35: 4 | J35: 1 | K35: 11 | L35: 1 | M35: 3 | O35: 1670
B36: 6XX | C36: 6701 | D36: 50 | E36: 45 | F36: 14 | G36: 129 | H36: 4 | I36: 29 | J36: 10 | K36: 12 | L36: 1 | M36: 2 | O36: 6997
B37: 7XX | C37: 6994 | D37: 142 | E37: 10 | F37: 162 | G37: 38 | H37: 28 | I37: 20 | J37: 7 | K37: 29 | L37: 47 | M37: 5 | N37: 7 | O37: 7489
B38: 8XX | C38: 36569 | D38: 779 | E38: 315 | F38: 145 | G38: 143 | H38: 37 | I38: 9 | J38: 30 | K38: 106 | M38: 30 | O38: 38163
B39: 9XX | C39: 10445 | D39: 81 | E39: 36 | F39: 49 | G39: 68 | H39: 38 | I39: 15 | J39: 22 | K39: 7 | L39: 14 | M39: 18 | N39: 1 | O39: 10794
A40: Total 2018 | C40: 77729 | D40: 1561 | E40: 661 | F40: 578 | G40: 743 | H40: 207 | I40: 84 | J40: 90 | K40: 169 | L40: 78 | M40: 122 | N40: 14 | O40: 82036
A41: Source : Bibliographie nationale française - Livres
A43: Répartition par pays de publication - détail par année
C45: 2018
A46: Cadre | B46: Indice | C46: France | D46: Algérie | E46: Allemagne | F46: Belgique | G46: Bénin | H46: Brésil | I46: Cameroun | J46: Canada | K46: Comores | L46: Croatie | M46: Égypte | N46: Espagne | O46: États-Unis | P46: Finlande | Q46: Grande-Bretagne | R46: Grèce | S46: Guadeloupe | T46: Hongrie | U46: Inconnu | V46: Inde | W46: Irlande | X46: Israël | Y46: Italie | Z46: Japon | AA46: Liban | AB46: Luxembourg | AC46: Mali | AD46: Maroc | AE46: Martinique | AF46: Monaco | AG46: Coédition | AH46: Nouvelle-Calédonie | AI46: Pays-Bas | AJ46: Pologne | AK46: Polynésie française | AL46: Portugal | AM46: République démocratique du Congo | AN46: République du Congo | AO46: République tchèque | AP46: Réunion | AQ46: Sénégal | AR46: Serbie | AS46: Suisse | AT46: Tunisie | AU46: Total général
A47: 0XX | B47: 000. Généralités | C47: 68 | O47: 2 | AU47: 70
B48: 004. Informatique | C48: 350 | F48: 1 | AU48: 351
B49: 010. Bibliographie | C49: 3 | AU49: 3
B50: 020. Sciences de l'information | C50: 55 | F50: 1 | AG50: 1 | AS50: 1 | AU50: 58
B51: 030. Encyclopédies générales | C51: 60 | AG51: 1 | AU51: 61
B52: 060. Organisations à vocation savante | C52: 26 | AU52: 26
B53: 070. Presse et édition | C53: 92 | F53: 2 | AG53: 3 | AS53: 1 | AU53: 98
B54: 090. Bibliophilie | C54: 21 | F54: 2 | AG54: 1 | AU54: 24
A55: 1XX | B55: 100. Philosophie | C55: 1084 | F55: 9 | J55: 6 | Y55: 4 | AG55: 10 | AQ55: 2 | AS55: 5 | AU55: 1120
B56: 130. Esotérisme, phénomènes paranormaux | C56: 795 | E56: 2 | J56: 87 | N56: 1 | Z56: 4 | AF56: 1 | AG56: 1 | AL56: 1 | AQ56: 1 | AR56: 3 | AS56: 77 | AU56: 973
B57: 150. Psychologie, psychanalyse | C57: 1278 | F57: 24 | J57: 67 | Y57: 2 | AF57: 1 | AG57: 5 | AS57: 89 | AU57: 1466
A58: 2XX | B58: 200. Religion (ouvrages généraux et comparatifs) | C58: 175 | F58: 1 | J58: 7 | Q58: 1 | Z58: 1 | AF58: 1 | AG58: 4 | AS58: 6 | AU58: 196
B59: 220. Bible, judaïsme, christianisme | C59: 1833 | F59: 34 | H59: 1 | J59: 9 | L59: 1 | N59: 1 | W59: 1 | X59: 1 | Y59: 5 | AG59: 31 | AQ59: 1 | AS59: 127 | AU59: 2045
B60: 290. Islam, religions orientales et anciennes, autres religions | C60: 442 | F60: 10 | J60: 6 | M60: 1 | N60: 59 | Y60: 1 | AA60: 2 | AC60: 1 | AF60: 1 | AG60: 8 | AQ60: 7 | AS60: 10 | AU60: 548
A61: 3XX | B61: 300. Sciences sociales | C61: 1333 | E61: 4 | F61: 37 | J61: 17 | K61: 1 | N61: 1 | Q61: 1 | S61: 1 | AG61: 23 | AQ61: 9 | AS61: 10 | AU61: 1437
B62: 320. Sciences politiques | C62: 1175 | F62: 28 | J62: 15 | W62: 2 | AF62: 2 | AG62: 21 | AN62: 2 | AQ62: 11 | AS62: 8 | AU62: 1264
B63: 330. Economie | C63: 1182 | F63: 13 | J63: 10 | O63: 1 | AF63: 1 | AG63: 13 | AH63: 2 | AQ63: 6 | AS63: 6 | AU63: 1234
B64: 340. Droit | C64: 1655 | F64: 286 | AA64: 1 | AB64: 7 | AG64: 12 | AH64: 1 | AQ64: 11 | AS64: 1 | AT64: 1 | AU64: 1975
B65: 350. Administration publique | C65: 471 | F65: 4 | S65: 1 | AG65: 4 | AH65: 1 | AQ65: 1 | AU65: 482
B66: 355. Art et science militaires | C66: 193 | F66: 1 | J66: 2 | AF66: 1 | AG66: 2 | AU66: 199
B67: 360. Problèmes et services sociaux | C67: 1008 | F67: 7 | J67: 11 | Y67: 1 | AF67: 4 | AG67: 7 | AH67: 2 | AU67: 1040
B68: 370. Education et enseignement | C68: 841 | F68: 15 | J68: 9 | N68: 1 | O68: 3 | Y68: 1 | AG68: 11 | AK68: 2 | AQ68: 1 | AS68: 1 | AU68: 885
B69: 380. Commerce, communication, transports | C69: 239 | Q69: 1 | AF69: 1 | AH69: 1 | AS69: 2 | AU69: 244
B70: 390. Ethnologie, anthropologie, folklore | C70: 206 | F70: 5 | G70: 1 | J70: 2 | V70: 1 | Y70: 1 | AF70: 1 | AG70: 2 | AK70: 2 | AS70: 1 | AU70: 222
A71: 4XX | B71: 400. Langues et linguistique | C71: 826 | E71: 1 | F71: 18 | M71: 1 | N71: 1 | Q71: 1 | AF71: 6 | AG71: 45 | AS71: 3 | AU71: 902
A72: 5XX | B72: 500. Sciences (généralités) | C72: 139 | F72: 3 | J72: 1 | N72: 1 | AG72: 1 | AU72: 145
B73: 510. Mathématiques | C73: 271 | F73: 1 | J73: 1 | Q73: 1 | AQ73: 1 | AS73: 2 | AU73: 277
B74: 520. Astronomie | C74: 86 | E74: 1 | Q74: 3 | AG74: 1 | AU74: 91
B75: 530. Physique | C75: 150 | F75: 1 | Q75: 1 | AS75: 1 | AU75: 153
B76: 540. Chimie, minéralogie, cristallographie | C76: 43 | F76: 1 | AG76: 1 | AU76: 45
B77: 550. Sciences de la Terre | C77: 120 | E77: 1 | AU77: 121
B78: 560. Paléontologie | C78: 54 | Q78: 1 | AF78: 1 | AU78: 56
B79: 570. Sciences de la vie | C79: 238 | F79: 2 | J79: 1 | N79: 1 | Q79: 2 | AS79: 8 | AU79: 252
B80: 580. Botanique | C80: 155 | N80: 1 | AQ80: 1 | AS80: 1 | AU80: 158
B81: 590. Zoologie | C81: 353 | E81: 2 | F81: 3 | J81: 4 | Q81: 3 | Y81: 1 | AA81: 1 | AS81: 5 | AU81: 372
A82: 6XX | B82: 600. Sciences appliquées | C82: 25 | F82: 1 | Q82: 1 | AU82: 27
B83: 610. Sciences médicales et paramédicales | C83: 2293 | E83: 1 | F83: 30 | J83: 28 | N83: 1 | Y83: 1 | AF83: 5 | AG83: 1 | AQ83: 1 | AS83: 85 | AU83: 2446
B84: 620. Sciences de l'ingénieur | C84: 734 | F84: 1 | Q84: 2 | AU84: 737
B85: 630. Agriculture, élevage | C85: 593 | E85: 1 | N85: 1 | Q85: 1 | AG85: 2 | AS85: 3 | AU85: 601
B86: 640. Economie domestique, hôtellerie | C86: 1726 | E86: 27 | F86: 4 | J86: 5 | Q86: 8 | AE86: 1 | AF86: 3 | AG86: 4 | AS86: 37 | AU86: 1815
B87: 650. Gestion et organisation de l'entreprise | C87: 1126 | F87: 13 | I87: 1 | J87: 11 | AF87: 2 | AG87: 7 | AS87: 2 | AU87: 1162
B88: 660. Génie chimique et technologies connexes | C88: 69 | AS88: 2 | AU88: 71
B89: 670. Industries | C89: 20 | AU89: 20
B90: 680. Métiers divers | C90: 32 | F90: 1 | AA90: 1 | AU90: 34
B91: 690. Bâtiment | C91: 83 | J91: 1 | AU91: 84
A92: 7XX | B92: 700. Arts | C92: 1042 | F92: 25 | H92: 1 | J92: 1 | Q92: 5 | R92: 2 | Y92: 13 | AB92: 1 | AF92: 1 | AG92: 51 | AI92: 1 | AJ92: 1 | AP92: 1 | AS92: 8 | AU92: 1153
B93: 710. Urbanisme | C93: 85 | F93: 3 | AG93: 3 | AS93: 3 | AU93: 94
B94: 720. Architecture | C94: 478 | E94: 1 | F94: 10 | M94: 1 | O94: 3 | R94: 1 | Y94: 1 | AF94: 2 | AG94: 14 | AS94: 3 | AU94: 514
B95: 730. Arts plastiques, sculpture | C95: 242 | F95: 2 | M95: 2 | O95: 1 | Y95: 3 | AA95: 1 | AG95: 11 | AI95: 1 | AS95: 3 | AU95: 266
B96: 740. Dessin, arts décoratifs, artisanat d'art | C96: 1240 | E96: 14 | F96: 16 | J96: 3 | O96: 2 | Q96: 9 | Y96: 2 | AG96: 12 | AS96: 1 | AU96: 1299
B97: 750. Peinture | C97: 713 | F97: 8 | Q97: 2 | Y97: 7 | AF97: 1 | AG97: 33 | AS97: 1 | AU97: 765
B98: 760. Arts graphiques | C98: 65 | AG98: 1 | AS98: 1 | AU98: 67
B99: 770. Photographie | C99: 747 | E99: 3 | F99: 14 | K99: 1 | O99: 1 | Q99: 2 | U99: 1 | V99: 1 | Y99: 4 | AA99: 1 | AG99: 22 | AP99: 2 | AS99: 5 | AU99: 804
B100: 780. Musique | C100: 415 | F100: 4 | T100: 1 | AD100: 1 | AF100: 1 | AG100: 3 | AQ100: 1 | AS100: 7 | AU100: 433
B101: 790. Spectacles et loisirs (généralités) | C101: 37 | N101: 1 | AU101: 38
B102: 791. Audiovisuel | C102: 445 | F102: 10 | N102: 4 | Y102: 14 | AG102: 5 | AQ102: 1 | AS102: 2 | AU102: 481
B103: 792. Représentations scéniques | C103: 148 | E103: 1 | F103: 3 | Y103: 1 | AG103: 4 | AS103: 1 | AU103: 158
B104: 793. Jeux | C104: 738 | F104: 39 | J104: 5 | Q104: 11 | W104: 2 | Y104: 2 | AF104: 1 | AG104: 1 | AP104: 2 | AS104: 1 | AU104: 802
B105: 796. Sports | C105: 599 | E105: 1 | F105: 8 | J105: 1 | AF105: 1 | AG105: 2 | AP105: 1 | AS105: 2 | AU105: 615
A106: 8XX | B106: 800. Histoire et critique littéraires | C106: 1048 | F106: 10 | J106: 9 | N106: 1 | AG106: 16 | AS106: 4 | AU106: 1088
B107: 801. Poésie | C107: 3734 | D107: 1 | F107: 16 | J107: 19 | V107: 2 | AG107: 24 | AP107: 1 | AQ107: 3 | AS107: 8 | AU107: 3808
B108: 802. Théâtre | C108: 832 | D108: 1 | F108: 7 | J108: 2 | K108: 1 | AG108: 3 | AU108: 846
B109: 803. Romans et fiction romanesque | C109: 17334 | E109: 3 | F109: 55 | J109: 214 | K109: 3 | N109: 3 | V109: 1 | W109: 1 | AF109: 26 | AG109: 47 | AO109: 1 | AQ109: 6 | AS109: 67 | AU109: 17761
B110: 804. Essais littéraires et écrits divers | C110: 2035 | F110: 48 | J110: 20 | P110: 1 | AF110: 1 | AG110: 5 | AQ110: 3 | AS110: 7 | AU110: 2120
B111: 805. Bandes dessinées | C111: 4287 | F111: 400 | J111: 1 | N111: 5 | Q111: 79 | AF111: 2 | AG111: 11 | AS111: 7 | AU111: 4792
B112: 809. Littérature pour la jeunesse | C112: 7299 | E112: 6 | F112: 243 | J112: 50 | K112: 1 | N112: 21 | Q112: 27 | S112: 2 | AA112: 8 | AF112: 1 | AG112: 39 | AH112: 1 | AS112: 50 | AU112: 7748
A113: 9XX | B113: 900. Histoire et géographie (généralités) | C113: 164 | F113: 1 | N113: 4 | Q113: 5 | AF113: 1 | AU113: 175
B114: 910. Géographie, tourisme (guides) et voyages | C114: 1467 | F114: 18 | J114: 1 | N114: 1 | Q114: 2 | Y114: 1 | AS114: 3 | AU114: 1493
B115: 920. Biographies et généalogie | C115: 6183 | E115: 12 | F115: 43 | J115: 31 | N115: 5 | R115: 1 | Y115: 1 | AA115: 2 | AF115: 17 | AG115: 27 | AH115: 1 | AM115: 1 | AQ115: 3 | AR115: 1 | AS115: 58 | AU115: 6386
B116: 930. Préhistoire et histoire ancienne | C116: 281 | F116: 7 | M116: 15 | N116: 2 | R116: 4 | Y116: 4 | AG116: 7 | AS116: 1 | AU116: 321
B117: 940. Histoire médiévale, moderne et contemporaine (sauf la France) | C117: 935 | E117: 2 | F117: 10 | J117: 4 | M117: 2 | N117: 6 | R117: 1 | Y117: 7 | AF117: 4 | AG117: 13 | AJ117: 1 | AQ117: 1 | AR117: 4 | AS117: 6 | AT117: 1 | AU117: 997
B118: 944. Histoire de la France (depuis 486) | C118: 1415 | E118: 1 | F118: 2 | O118: 1 | Y118: 1 | AG118: 2 | AU118: 1422
A119: Total | C119: 77729 | D119: 2 | E119: 84 | F119: 1561 | G119: 1 | H119: 2 | I119: 1 | J119: 661 | K119: 7 | L119: 1 | M119: 22 | N119: 122 | O119: 14 | P119: 1 | Q119: 169 | R119: 9 | S119: 4 | T119: 1 | U119: 1 | V119: 5 | W119: 6 | X119: 1 | Y119: 78 | Z119: 5 | AA119: 17 | AB119: 8 | AC119: 1 | AD119: 1 | AE119: 1 | AF119: 90 | AG119: 578 | AH119: 9 | AI119: 2 | AJ119: 2 | AK119: 4 | AL119: 1 | AM119: 1 | AN119: 2 | AO119: 1 | AP119: 7 | AQ119: 71 | AR119: 8 | AS119: 743 | AT119: 2 | AU119: 82036
A120: Source : Bibliographie nationale française - Livres
C122: 2017 | AQ122: Total 2017
A123: Cadre | B123: Indice | C123: France | D123: Belgique | E123: Canada | F123: Suisse | G123: Coédition | H123: Allemagne | I123: Monaco | J123: Italie | K123: Liban | L123: Grande-Bretagne | M123: Sénégal | N123: Espagne | O123: Egypte | P123: Finlande | Q123: Irlande | R123: Réunion | S123: Israël | T123: Grèce | U123: Comores | V123: Hongrie | W123: Martinique | X123: Japon | Y123: Etats-Unis | Z123: Guadeloupe | AA123: Nouvelle-Calédonie | AB123: Maurice | AC123: Roumanie | AD123: Inde | AE123: Russie | AF123: République du Congo | AG123: Luxembourg | AH123: Iran | AI123: Brésil | AJ123: Argentine | AK123: Intergouvernemental | AL123: Pologne | AM123: Arabie Saoudite | AN123: Micronésie | AO123: Gabon | AP123: Polynésie
A124: 0XX | B124: 000. Généralités | C124: 46 | AQ124: =SUM(C124:AP124) -> 46
B125: 004. Informatique | C125: 308 | D125: 1 | AQ125: 309
B126: 010. Bibliographie | C126: 8 | AQ126: 8
B127: 020. Sciences de l'information | C127: 58 | E127: 1 | G127: 3 | AQ127: 62
B128: 030. Encyclopédies générales | C128: 67 | L128: 1 | AQ128: 68
B129: 060. Organisations à vocation savante | C129: 17 | F129: 1 | G129: 1 | AQ129: 19
B130: 070. Presse et édition | C130: 90 | D130: 1 | E130: 1 | H130: 1 | M130: 1 | N130: 1 | O130: 1 | AD130: 1 | AQ130: 97
B131: 090. Bibliophilie | C131: 20 | D131: 1 | AQ131: 21
A132: 1XX | B132: 100. Philosophie | C132: 976 | D132: 9 | E132: 5 | F132: 6 | G132: 9 | H132: 1 | I132: 1 | J132: 2 | K132: 1 | Q132: 1 | AI132: 1 | AQ132: 1012
B133: 130. Esotérisme, phénomènes paranormaux | C133: 775 | E133: 86 | F133: 5 | Q133: 4 | X133: 1 | AQ133: 871
B134: 150. Psychologie, psychanalyse | C134: 1072 | D134: 26 | E134: 83 | F134: 43 | G134: 5 | I134: 1 | AQ134: 1230
A135: 2XX | B135: 200. Religion (ouvrages généraux et comparatifs) | C135: 152 | D135: 1 | E135: 5 | F135: 7 | G135: 1 | J135: 1 | M135: 1 | Q135: 1 | AQ135: 169
B136: 220. Bible, judaïsme, christianisme | C136: 1839 | D136: 52 | E136: 15 | F136: 261 | G136: 47 | I136: 3 | Q136: 2 | S136: 5 | AQ136: 2224
B137: 290. Islam, religions orientales et anciennes, autres religions | C137: 404 | D137: 5 | E137: 6 | F137: 4 | G137: 2 | H137: 1 | I137: 1 | J137: 1 | K137: 27 | M137: 5 | T137: 1 | U137: 1 | AM137: 1 | AQ137: 459
A138: 3XX | B138: 300. Sciences sociales | C138: 1336 | D138: 24 | E138: 14 | F138: 21 | G138: 25 | H138: 1 | I138: 3 | M138: 3 | Q138: 1 | Z138: 1 | AP138: 1 | AQ138: 1430
B139: 320. Sciences politiques | C139: 1491 | D139: 26 | E139: 3 | F139: 8 | G139: 23 | I139: 2 | J139: 1 | K139: 1 | L139: 1 | M139: 2 | Q139: 13 | Y139: 1 | AH139: 1 | AQ139: 1573
B140: 330. Economie | C140: 1219 | D140: 14 | E140: 8 | F140: 5 | G140: 17 | I140: 1 | M140: 1 | AA140: 1 | AQ140: 1266
B141: 340. Droit | C141: 1827 | D141: 170 | F141: 1 | G141: 40 | I141: 1 | M141: 4 | AG141: 1 | AQ141: =SUM(C141:AP141) -> 2044
B142: 350. Administration publique | C142: 377 | D142: 4 | M142: 1 | Q142: 1 | AQ142: 383
B143: 355. Art et science militaires | C143: 219 | D143: 4 | F143: 1 | AQ143: 224
B144: 360. Problèmes et services sociaux | C144: 948 | D144: 14 | E144: 3 | F144: 8 | G144: 5 | H144: 1 | I144: 4 | M144: 1 | N144: 1 | AQ144: 985
B145: 370. Education et enseignement | C145: 718 | D145: 30 | E145: 8 | F145: 4 | G145: 8 | I145: 4 | M145: 1 | N145: 1 | AK145: 1 | AQ145: 775
B146: 380. Commerce, communication, transports | C146: 226 | D146: 1 | H146: 1 | AQ146: 228
B147: 390. Ethnologie, anthropologie, folklore | C147: 198 | D147: 1 | F147: 1 | G147: 2 | J147: 1 | AQ147: 203
A148: 4XX | B148: 400. Langues et linguistique | C148: 880 | D148: 7 | E148: 2 | F148: 1 | G148: 29 | L148: 5 | P148: 1 | U148: 2 | AQ148: 927
A149: 5XX | B149: 500. Sciences (généralités) | C149: 113 | H149: 1 | AQ149: 114
B150: 510. Mathématiques | C150: 235 | D150: 5 | H150: 1 | AQ150: 241
B151: 520. Astronomie | C151: 81 | L151: 1 | AQ151: 82
B152: 530. Physique | C152: 142 | D152: 1 | AQ152: 143
B153: 540. Chimie, minéralogie, cristallographie | C153: 51 | D153: 3 | E153: 1 | AQ153: 55
B154: 550. Sciences de la Terre | C154: 83 | D154: 4 | E154: 1 | H154: 1 | AQ154: 89
B155: 560. Paléontologie | C155: 40 | H155: 1 | AQ155: 41
B156: 570. Sciences de la vie | C156: 220 | D156: 3 | E156: 1 | F156: 9 | H156: 2 | AQ156: 235
B157: 580. Botanique | C157: 123 | F157: 4 | G157: 1 | H157: 2 | AQ157: 130
B158: 590. Zoologie | C158: 290 | D158: 2 | E158: 10 | F158: 6 | R158: 1 | AQ158: 309
A159: 6XX | B159: 600. Sciences appliquées | C159: 26 | D159: 1 | AQ159: 27
B160: 610. Sciences médicales et paramédicales | C160: 1812 | D160: 41 | E160: 24 | F160: 30 | G160: 7 | H160: 2 | I160: 17 | Q160: 1 | AG160: 1 | AQ160: 1935
B161: 620. Sciences de l'ingénieur | C161: 560 | D161: 3 | G161: 3 | H161: 2 | L161: 1 | AQ161: 569
B162: 630. Agriculture, élevage | C162: 556 | E162: 4 | F162: 5 | G162: 2 | H162: 5 | N162: 2 | AQ162: 574
B163: 640. Economie domestique, hôtellerie | C163: 1688 | D163: 1 | E163: 8 | F163: 37 | G163: 15 | H163: 66 | I163: 3 | L163: 7 | AQ163: 1825
B164: 650. Gestion et organisation de l'entreprise | C164: 1157 | D164: 12 | E164: 14 | F164: 1 | G164: 1 | M164: 2 | AQ164: 1187
B165: 660. Génie chimique et technologies connexes | C165: 50 | AQ165: 50
B166: 670. Industries | C166: 18 | AQ166: 18
B167: 680. Métiers divers | C167: 29 | D167: 1 | F167: 2 | AQ167: 32
B168: 690. Bâtiment | C168: 59 | H168: 1 | AQ168: 60
A169: 7XX | B169: 700. Arts | C169: 995 | D169: 21 | F169: 14 | G169: 61 | H169: 6 | J169: 13 | L169: 4 | R169: 2 | AE169: 1 | AQ169: 1117
B170: 710. Urbanisme | C170: 116 | F170: 5 | AQ170: 121
B171: 720. Architecture | C171: 483 | D171: 4 | E171: 2 | F171: 13 | G171: 4 | H171: 9 | I171: 1 | J171: 1 | L171: 1 | AQ171: 518
B172: 730. Arts plastiques, sculpture | C172: 276 | D172: 4 | F172: 1 | G172: 13 | H172: 2 | J172: 9 | O172: 3 | R172: 1 | T172: 1 | AQ172: 310
B173: 740. Dessin, arts décoratifs, artisanat d'art | C173: 1137 | D173: 10 | F173: 6 | G173: 22 | H173: 21 | J173: 3 | L173: 2 | Y173: 3 | AM173: 2 | AQ173: 1206
B174: 750. Peinture | C174: 663 | D174: 12 | F174: 9 | G174: 25 | H174: 13 | J174: 8 | AA174: 1 | AQ174: 731
B175: 760. Arts graphiques | C175: 75 | G175: 2 | H175: 2 | I175: 1 | AQ175: 80
B176: 770. Photographie | C176: 753 | D176: 10 | E176: 1 | F176: 14 | G176: 14 | H176: 31 | J176: 6 | L176: 14 | R176: 3 | U176: 1 | AH176: 1 | AQ176: 848
B177: 780. Musique | C177: 373 | E177: 1 | F177: 3 | G177: 7 | H177: 1 | I177: 3 | J177: 2 | R177: 1 | Y177: 1 | AQ177: 392
B178: 790. Spectacles et loisirs (généralités) | C178: 34 | AQ178: 34
B179: 791. Audiovisuel | C179: 477 | D179: 13 | F179: 3 | G179: 3 | H179: 4 | J179: 5 | L179: 2 | Y179: 1 | AQ179: 508
B180: 792. Représentations scéniques | C180: 129 | F180: 1 | G180: 1 | H180: 1 | J180: 2 | AQ180: 134
B181: 793. Jeux | C181: 644 | D181: 32 | E181: 3 | G181: 1 | H181: 1 | I181: 2 | L181: 2 | Q181: 1 | AQ181: 686
B182: 796. Sports | C182: 404 | D182: 5 | F182: 5 | G182: 2 | H182: 5 | I182: 1 | N182: 1 | R182: 1 | AA182: 1 | AO182: 1 | AQ182: 426
A183: 8XX | B183: 800. Histoire et critique littéraires | C183: 1093 | D183: 11 | E183: 2 | F183: 5 | G183: 19 | J183: 1 | L183: 1 | N183: 3 | Q183: 1 | AQ183: 1136
B184: 801. Poésie | C184: 3277 | D184: 15 | E184: 3 | F184: 17 | G184: 26 | U184: 1 | V184: 1 | AJ184: 1 | AQ184: 3341
B185: 802. Théâtre | C185: 930 | F185: 3 | G185: 2 | AQ185: 935
B186: 803. Romans et fiction romanesque | C186: 14996 | D186: 38 | E186: 126 | F186: 62 | G186: 20 | H186: 2 | I186: 17 | K186: 2 | M186: 3 | U186: 2 | X186: 1 | Y186: 1 | AA186: 1 | AF186: 3 | AQ186: 15274
B187: 804. Essais littéraires et écrits divers | C187: 1812 | D187: 27 | E187: 6 | F187: 20 | G187: 6 | I187: 1 | W187: 1 | AC187: 1 | AH187: 1 | AQ187: 1875
B188: 805. Bandes dessinées | C188: 3704 | D188: 438 | E188: 3 | F188: 4 | G188: 10 | H188: 1 | I188: 4 | AQ188: 4164
B189: 809. Littérature pour la jeunesse | C189: 6946 | D189: 178 | E189: 68 | F189: 48 | G189: 30 | H189: 12 | I189: 5 | J189: 2 | K189: 8 | L189: 2 | N189: 37 | Q189: 7 | R189: 1 | U189: 1 | AA189: 1 | AQ189: 7346
A190: 9XX | B190: 900. Histoire et géographie (généralités) | C190: 154 | F190: 1 | G190: 2 | AQ190: 157
B191: 910. Géographie, tourisme (guides) et voyages | C191: 1430 | D191: 4 | E191: 7 | F191: 5 | G191: 8 | H191: 8 | L191: 1 | N191: 2 | AH191: 1 | AQ191: 1466
B192: 920. Biographies et généalogie | C192: 5014 | D192: 32 | E192: 16 | F192: 56 | G192: 19 | H192: 2 | I192: 15 | J192: 4 | K192: 3 | M192: 2 | N192: 1 | Q192: 1 | U192: 1 | Y192: 1 | AA192: 1 | AB192: 2 | AF192: 1 | AN192: 1 | AQ192: 5172
B193: 930. Préhistoire et histoire ancienne | C193: 302 | D193: 9 | F193: 6 | G193: 4 | H193: 1 | J193: 6 | K193: 3 | N193: 3 | O193: 3 | T193: 2 | AQ193: 339
B194: 940. Histoire médiévale, moderne et contemporaine (sauf la France) | C194: 905 | D194: 15 | E194: 2 | F194: 8 | G194: 19 | H194: 4 | I194: 5 | J194: 7 | K194: 2 | N194: 2 | AL194: 1 | AQ194: 970
B195: 944. Histoire de la France (depuis 486) | C195: 1313 | D195: 7 | F195: 1 | G195: 2 | H195: 5 | I195: 1 | J195: 2 | L195: 1 | N195: 4 | AQ195: 1336
A196: Total | C196: =SUM(C124:C195) -> 71039 | D196: =SUM(D124:D195) -> 1353 | E196: =SUM(E124:E195) -> 543 | F196: =SUM(F124:F195) -> 781 | G196: 568 | H196: 221 | I196: 97 | J196: 77 | K196: 47 | L196: 46 | M196: 27 | N196: 58 | O196: 7 | P196: 1 | Q196: 34 | R196: 10 | S196: 5 | T196: 4 | U196: 9 | V196: 1 | W196: 1 | X196: 2 | Y196: 8 | Z196: 1 | AA196: 6 | AB196: 2 | AC196: 1 | AD196: 1 | AE196: 1 | AF196: 4 | AG196: 2 | AH196: 4 | AI196: 1 | AJ196: 1 | AK196: 1 | AL196: 1 | AM196: 3 | AN196: 1 | AO196: 1 | AP196: 1 | AQ196: 74971
A197: Source : Bibliographie nationale française - Livres
C199: 2016 | AS199: Total 2016
A200: Cadre | B200: Indice | C200: France | D200: Belgique | E200: Canada | F200: Suisse | G200: Coédition | H200: Allemagne | I200: Monaco | J200: Italie | K200: Liban | L200: Grande-Bretagne | M200: Sénégal | N200: Espagne | O200: Egypte | P200: Finlande | Q200: Irlande | R200: Réunion | S200: Israël | T200: Grèce | U200: Comores | V200: Martinique | W200: Japon | X200: Etats-Unis | Y200: Guadeloupe | Z200: Nouvelle-Calédonie | AA200: Mayotte | AB200: Mexique | AC200: Maurice | AD200: Guyane française | AE200: Roumanie | AF200: Inde | AG200: Russie | AH200: République du Congo | AI200: Pays-bas | AJ200: Turquie | AK200: Bénin | AL200: Côte d'Ivoire | AM200: Luxembourg | AN200: Iran | AO200: Malte | AP200: Portugal | AQ200: Chine | AR200: Sainte-Lucie
A201: 0XX | B201: 000. Généralités | C201: 58 | I201: 1 | AS201: 59
B202: 004. Informatique | C202: 347 | F202: 2 | AS202: 349
B203: 010. Bibliographie | C203: 4 | AS203: 4
B204: 020. Sciences de l'information | C204: 73 | G204: 2 | AS204: 75
B205: 030. Encyclopédies générales | C205: 36 | G205: 1 | AS205: 37
B206: 060. Organisations à vocation savante | C206: 8 | G206: 1 | AS206: 9
B207: 070. Presse et édition | C207: 64 | D207: 1 | G207: 1 | H207: 1 | AS207: 67
... 67 more rows

Sheet Langues
A1: Répartition par langue de publication - synthèse
A3: Année | B3: Classe | C3: Français | D3: Multilingue | E3: Anglais | F3: Espagnol | G3: Autres | H3: Breton | I3: Italien | J3: Occitan | K3: Allemand | L3: Créole | M3: Basque | N3: Corse | O3: Total
A4: 2016 | B4: 0XX | C4: 649 | D4: 14 | E4: 5 | F4: 25 | O4: =SUM(C4:N4) -> 693
B5: 1XX | C5: 3041 | D5: 21 | E5: 24 | F5: 3 | G5: 5 | H5: 1 | I5: 6 | K5: 1 | O5: =SUM(C5:N5) -> 3102
B6: 2XX | C6: 2832 | D6: 123 | E6: 18 | F6: 6 | G6: 18 | H6: 1 | J6: 2 | K6: 2 | O6: 3002
B7: 3XX | C7: 7977 | D7: 143 | E7: 98 | F7: 4 | G7: 14 | H7: 3 | I7: 2 | J7: 2 | K7: 4 | M7: 1 | N7: 1 | O7: 8249
B8: 4XX | C8: 454 | D8: 322 | E8: 11 | F8: 1 | G8: 7 | H8: 1 | I8: 3 | J8: 1 | K8: 2 | O8: 802
B9: 5XX | C9: 1280 | D9: 28 | E9: 31 | G9: 1 | H9: 1 | K9: 1 | O9: 1342
B10: 6XX | C10: 5814 | D10: 91 | E10: 116 | F10: 2 | G10: 2 | I10: 2 | K10: 1 | M10: 1 | O10: 6029
B11: 7XX | C11: 6224 | D11: 825 | E11: 166 | F11: 3 | G11: 12 | I11: 9 | K11: 11 | M11: 1 | O11: 7251
B12: 8XX | C12: 34878 | D12: 693 | E12: 154 | F12: 24 | G12: 80 | H12: 62 | I12: 10 | J12: 46 | K12: 37 | L12: 16 | M12: 19 | N12: 11 | O12: 36030
B13: 9XX | C13: 9078 | D13: 207 | E13: 75 | F13: 18 | G13: 23 | H13: 4 | I13: 8 | J13: 1 | K13: 15 | M13: 1 | O13: 9430
A14: Total 2016 | C14: 72227 | D14: 2467 | E14: 698 | F14: 86 | G14: 162 | H14: 73 | I14: 40 | J14: 52 | K14: 74 | L14: 16 | M14: 23 | N14: 12 | O14: =SUM(C14:N14) -> 75930
A17: Année | B17: Classe | C17: Français | D17: Multilingue | E17: Anglais | F17: Espagnol | G17: Autres | H17: Breton | I17: Italien | J17: Occitan | K17: Allemand | L17: Créole | M17: Basque | N17: Corse | O17: Total
A18: 2017 | B18: 0XX | C18: 592 | D18: 7 | E18: 2 | F18: 28 | G18: 1 | O18: =SUM(C18:N18) -> 630
B19: 1XX | C19: 3043 | D19: 31 | E19: 19 | F19: 11 | G19: 5 | I19: 4 | O19: =SUM(C19:N19) -> 3113
B20: 2XX | C20: 2700 | D20: 82 | E20: 17 | F20: 29 | G20: 16 | H20: 2 | I20: 3 | K20: 3 | O20: 2852
B21: 3XX | C21: 8876 | D21: 119 | E21: 85 | F21: 10 | G21: 14 | H21: 3 | J21: 1 | K21: 3 | O21: 9111
B22: 4XX | C22: 421 | D22: 485 | E22: 12 | G22: 4 | H22: 2 | J22: 1 | K22: 1 | M22: 1 | O22: 927
B23: 5XX | C23: 1388 | D23: 29 | E23: 22 | O23: 1439
B24: 6XX | C24: 6074 | D24: 89 | E24: 89 | F24: 11 | G24: 5 | I24: 4 | K24: 5 | O24: 6277
B25: 7XX | C25: 6103 | D25: 830 | E25: 144 | F25: 7 | G25: 15 | H25: 3 | I25: 5 | K25: 3 | O25: 7110
B26: 8XX | C26: 32878 | D26: 638 | E26: 182 | F26: 60 | G26: 68 | H26: 171 | I26: 15 | J26: 32 | K26: 9 | L26: 4 | M26: 10 | N26: 5 | O26: 34072
B27: 9XX | C27: 9090 | D27: 188 | E27: 90 | F27: 12 | G27: 34 | H27: 5 | I27: 6 | J27: 1 | K27: 12 | L27: 1 | N27: 1 | O27: 9440
A28: Total 2017 | C28: =SUM(C18:C27) -> 71165 | D28: =SUM(D18:D27) -> 2498 | E28: 662 | F28: 168 | G28: 162 | H28: 186 | I28: 37 | J28: 35 | K28: 36 | L28: 5 | M28: 11 | N28: 6 | O28: =SUM(C28:N28) -> 74971
A30: Année | B30: Classe | C30: Français | D30: Multilingue | E30: Anglais | F30: Espagnol | G30: Autres | H30: Breton | I30: Italien | J30: Occitan | K30: Allemand | L30: Créole | M30: Basque | N30: Corse | O30: Total
A31: 2018 | B31: 0XX | C31: 630 | D31: 6 | E31: 5 | F31: 47 | G31: 2 | J31: 1 | O31: =SUM(C31:N31) -> 691
B32: 1XX | C32: 3477 | D32: 26 | E32: 36 | F32: 11 | G32: 3 | I32: 3 | J32: 1 | K32: 2 | O32: =SUM(C32:N32) -> 3559
B33: 2XX | C33: 2621 | D33: 89 | E33: 24 | F33: 6 | G33: 41 | H33: 3 | I33: 3 | K33: 2 | O33: 2789
B34: 3XX | C34: 8655 | D34: 153 | E34: 117 | F34: 10 | G34: 17 | H34: 9 | I34: 2 | J34: 4 | K34: 4 | M34: 6 | N34: 5 | O34: 8982
B35: 4XX | C35: 445 | D35: 434 | E35: 9 | F35: 5 | G35: 1 | H35: 1 | I35: 3 | J35: 1 | K35: 1 | N35: 2 | O35: 902
B36: 5XX | C36: 1592 | D36: 31 | E36: 42 | F36: 2 | G36: 0 | H36: 1 | N36: 2 | O36: 1670
B37: 6XX | C37: 6745 | D37: 104 | E37: 129 | F37: 8 | G37: 4 | I37: 1 | K37: 5 | M37: 1 | O37: 6997
B38: 7XX | C38: 6533 | D38: 763 | E38: 157 | F38: 4 | G38: 17 | I38: 8 | K38: 6 | N38: 1 | O38: 7489
B39: 8XX | C39: 36919 | D39: 717 | E39: 195 | F39: 47 | G39: 72 | H39: 103 | I39: 9 | J39: 46 | K39: 19 | L39: 11 | M39: 5 | N39: 20 | O39: 38163
B40: 9XX | C40: 10421 | D40: 198 | E40: 95 | F40: 20 | G40: 30 | H40: 4 | I40: 8 | J40: 3 | K40: 14 | N40: 1 | O40: 10794
A41: Total 2018 | C41: 78038 | D41: 2521 | E41: 809 | F41: 160 | G41: 187 | H41: 121 | I41: 37 | J41: 56 | K41: 53 | L41: 11 | M41: 12 | N41: 31 | O41: 82036
A42: Source : Bibliographie nationale française - Livres
A44: Répartition par langue de publication - détail par année
C45: 2018 | AX45: Total 2018
A46: Classe | B46: Indice | C46: français | D46: multilingue | E46: allemand | F46: ancien français | G46: anglais | H46: arabe | I46: arménien | J46: bambara | K46: basque | L46: breton | M46: bulgare | N46: catalan | O46: chinois | P46: corse | Q46: créole | R46: créole portugais | S46: dialecte français | T46: espagnol | U46: espéranto | V46: français moyen | W46: grec | X46: grec polytonique | Y46: hébreu | Z46: inconnu | AA46: italien | AB46: japonais | AC46: kabyle | AD46: khmer | AE46: kongo | AF46: langue austronésienne | AG46: langue bantou | AH46: langue berbère | AI46: latin | AJ46: néerlandais | AK46: occitan | AL46: persan | AM46: polonais | AN46: portugais | AO46: roumain | AP46: russe | AQ46: sans contenu linguistique | AR46: sanskrit | AS46: soninké | AT46: tsigane | AU46: turc | AV46: vietnamien | AW46: wolof
A47: 0XX | B47: 000. Généralités | C47: 70 | AX47: 70
B48: 004. Informatique | C48: 302 | G48: 2 | T48: 47 | AX48: 351
B49: 010. Bibliographie | C49: 3 | AX49: 3
B50: 020. Sciences de l'information | C50: 56 | D50: 1 | AM50: 1 | AX50: 58
B51: 030. Encyclopédies générales | C51: 60 | AK51: 1 | AX51: 61
B52: 060. Organisations à vocation savante | C52: 25 | D52: 1 | AX52: 26
B53: 070. Presse et édition | C53: 94 | D53: 3 | AM53: 1 | AX53: 98
B54: 090. Bibliophilie | C54: 20 | D54: 1 | G54: 3 | AX54: 24
A55: 1XX | B55: 100. Philosophie | C55: 1087 | D55: 16 | G55: 9 | T55: 7 | AI55: 1 | AX55: 1120
B56: 130. Esotérisme, phénomènes paranormaux | C56: 942 | D56: 7 | E56: 2 | G56: 15 | T56: 2 | AA56: 3 | AM56: 2 | AX56: 973
B57: 150. Psychologie, psychanalyse | C57: 1448 | D57: 3 | G57: 12 | T57: 2 | AK57: 1 | AX57: 1466
A58: 2XX | B58: 200. Religion (ouvrages généraux et comparatifs) | C58: 189 | D58: 4 | G58: 1 | H58: 2 | AX58: 196
B59: 220. Bible, judaïsme, christianisme | C59: 1945 | D59: 53 | F59: 1 | G59: 18 | H59: 1 | L59: 3 | T59: 4 | U59: 1 | Y59: 2 | AA59: 3 | AF59: 1 | AI59: 3 | AM59: 1 | AN59: 2 | AO59: 4 | AP59: 1 | AT59: 1 | AV59: 1 | AX59: 2045
B60: 290. Islam, religions orientales et anciennes, autres religions | C60: 487 | D60: 32 | E60: 2 | G60: 5 | H60: 15 | M60: 2 | T60: 2 | Y60: 1 | AR60: 2 | AX60: 548
A61: 3XX | B61: 300. Sciences sociales | C61: 1384 | D61: 32 | G61: 16 | P61: 1 | T61: 1 | AM61: 1 | AN61: 2 | AX61: 1437
B62: 320. Sciences politiques | C62: 1208 | D62: 23 | G62: 18 | H62: 2 | O62: 1 | T62: 7 | AA62: 1 | AM62: 3 | AP62: 1 | AX62: 1264
B63: 330. Economie | C63: 1185 | D63: 9 | E63: 1 | G63: 38 | AP63: 1 | AX63: 1234
B64: 340. Droit | C64: 1916 | D64: 43 | G64: 15 | H64: 1 | AX64: 1975
B65: 350. Administration publique | C65: 479 | D65: 2 | G65: 1 | AX65: 482
B66: 355. Art et science militaires | C66: 185 | D66: 7 | F66: 1 | G66: 6 | AX66: 199
B67: 360. Problèmes et services sociaux | C67: 1005 | D67: 17 | E67: 1 | G67: 12 | T67: 1 | AA67: 1 | AK67: 1 | AM67: 1 | AN67: 1 | AX67: 1040
B68: 370. Education et enseignement | C68: 849 | D68: 9 | E68: 2 | G68: 3 | K68: 6 | L68: 9 | P68: 4 | AK68: 3 | AX68: 885
B69: 380. Commerce, communication, transports | C69: 234 | D69: 4 | G69: 6 | AX69: 244
B70: 390. Ethnologie, anthropologie, folklore | C70: 210 | D70: 7 | G70: 2 | T70: 1 | AM70: 1 | AS70: 1 | AX70: 222
A71: 4XX | B71: 400. Langues et linguistique | C71: 445 | D71: 434 | E71: 1 | G71: 9 | L71: 1 | P71: 2 | T71: 5 | AA71: 3 | AF71: 1 | AK71: 1 | AX71: 902
A72: 5XX | B72: 500. Sciences (généralités) | C72: 141 | D72: 2 | G72: 2 | AX72: 145
B73: 510. Mathématiques | C73: 261 | D73: 6 | G73: 8 | T73: 2 | AX73: 277
B74: 520. Astronomie | C74: 89 | D74: 1 | G74: 1 | AX74: 91
B75: 530. Physique | C75: 142 | D75: 2 | G75: 9 | AX75: 153
B76: 540. Chimie, minéralogie, cristallographie | C76: 43 | D76: 1 | G76: 1 | AX76: 45
B77: 550. Sciences de la Terre | C77: 104 | D77: 5 | G77: 12 | AX77: 121
B78: 560. Paléontologie | C78: 53 | D78: 3 | AX78: 56
B79: 570. Sciences de la vie | C79: 241 | D79: 3 | G79: 6 | P79: 2 | AX79: 252
B80: 580. Botanique | C80: 155 | D80: 1 | G80: 1 | L80: 1 | AX80: 158
B81: 590. Zoologie | C81: 363 | D81: 7 | G81: 2 | AX81: 372
A82: 6XX | B82: 600. Sciences appliquées | C82: 26 | D82: 1 | AX82: 27
B83: 610. Sciences médicales et paramédicales | C83: 2403 | D83: 20 | G83: 19 | K83: 1 | T83: 3 | AX83: 2446
B84: 620. Sciences de l'ingénieur | C84: 647 | D84: 22 | G84: 66 | T84: 1 | AB84: 1 | AX84: 737
B85: 630. Agriculture, élevage | C85: 582 | D85: 9 | E85: 2 | G85: 7 | AA85: 1 | AX85: 601
B86: 640. Economie domestique, hôtellerie | C86: 1770 | D86: 21 | E86: 2 | G86: 21 | AB86: 1 | AX86: 1815
B87: 650. Gestion et organisation de l'entreprise | C87: 1118 | D87: 24 | E87: 1 | G87: 15 | T87: 4 | AX87: 1162
B88: 660. Génie chimique et technologies connexes | C88: 68 | D88: 3 | AX88: 71
B89: 670. Industries | C89: 19 | G89: 1 | AX89: 20
B90: 680. Métiers divers | C90: 33 | H90: 1 | AX90: 34
B91: 690. Bâtiment | C91: 79 | D91: 4 | AN91: 1 | AX91: 84
A92: 7XX | B92: 700. Arts | C92: 890 | D92: 217 | E92: 3 | G92: 39 | H92: 1 | T92: 1 | AA92: 1 | AM92: 1 | AX92: 1153
B93: 710. Urbanisme | C93: 86 | D93: 7 | G93: 1 | AX93: 94
B94: 720. Architecture | C94: 433 | D94: 49 | G94: 26 | T94: 2 | AA94: 3 | AJ94: 1 | AX94: 514
B95: 730. Arts plastiques, sculpture | C95: 221 | D95: 36 | G95: 8 | AA95: 1 | AX95: 266
B96: 740. Dessin, arts décoratifs, artisanat d'art | C96: 1189 | D96: 87 | E96: 2 | G96: 15 | P96: 1 | X96: 1 | Z96: 2 | AA96: 1 | AQ96: 1 | AX96: 1299
B97: 750. Peinture | C97: 608 | D97: 141 | G97: 13 | Z97: 1 | AA97: 1 | AM97: 1 | AX97: 765
B98: 760. Arts graphiques | C98: 56 | D98: 9 | G98: 2 | AX98: 67
B99: 770. Photographie | C99: 599 | D99: 168 | G99: 30 | T99: 1 | Z99: 4 | AN99: 2 | AX99: 804
B100: 780. Musique | C100: 410 | D100: 16 | G100: 4 | I100: 1 | AA100: 1 | AC100: 1 | AX100: 433
B101: 790. Spectacles et loisirs (généralités) | C101: 35 | D101: 2 | G101: 1 | AX101: 38
B102: 791. Audiovisuel | C102: 460 | D102: 15 | E102: 1 | G102: 5 | AX102: 481
B103: 792. Représentations scéniques | C103: 146 | D103: 10 | G103: 2 | AX103: 158
B104: 793. Jeux | C104: 793 | D104: 1 | G104: 8 | AX104: 802
B105: 796. Sports | C105: 607 | D105: 5 | G105: 3 | AX105: 615
A106: 8XX | B106: 800. Histoire et critique littéraires | C106: 996 | D106: 75 | E106: 1 | G106: 10 | N106: 1 | T106: 5 | AX106: 1088
B107: 801. Poésie | C107: 3451 | D107: 279 | E107: 2 | F107: 4 | G107: 28 | H107: 2 | L107: 5 | O107: 1 | P107: 5 | Q107: 2 | R107: 1 | T107: 5 | V107: 2 | AA107: 2 | AB107: 1 | AK107: 10 | AL107: 1 | AN107: 4 | AO107: 1 | AP107: 1 | AS107: 1 | AX107: 3808
B108: 802. Théâtre | C108: 789 | D108: 36 | G108: 8 | L108: 1 | P108: 1 | S108: 1 | T108: 7 | AK108: 2 | AO108: 1 | AX108: 846
B109: 803. Romans et fiction romanesque | C109: 17508 | D109: 87 | E109: 5 | F109: 1 | G109: 70 | H109: 6 | J109: 1 | K109: 2 | L109: 15 | O109: 1 | P109: 5 | Q109: 3 | T109: 20 | U109: 1 | V109: 2 | W109: 1 | AA109: 2 | AD109: 1 | AG109: 1 | AH109: 1 | AK109: 20 | AM109: 2 | AN109: 2 | AP109: 2 | AU109: 1 | AW109: 1 | AX109: 17761
B110: 804. Essais littéraires et écrits divers | C110: 2016 | D110: 71 | E110: 1 | G110: 13 | P110: 2 | Q110: 1 | T110: 2 | V110: 5 | AA110: 1 | AK110: 3 | AN110: 2 | AS110: 1 | AV110: 1 | AW110: 1 | AX110: 2120
B111: 805. Bandes dessinées | C111: 4758 | D111: 10 | E111: 1 | G111: 11 | L111: 6 | Q111: 2 | T111: 1 | AA111: 2 | AI111: 1 | AX111: 4792
B112: 809. Littérature pour la jeunesse | C112: 7401 | D112: 159 | E112: 9 | G112: 55 | I112: 1 | K112: 3 | L112: 76 | N112: 1 | P112: 7 | Q112: 3 | T112: 7 | AA112: 2 | AK112: 11 | AQ112: 12 | AV112: 1 | AX112: 7748
A113: 9XX | B113: 900. Histoire et géographie (généralités) | C113: 165 | D113: 4 | G113: 1 | T113: 5 | AX113: 175
B114: 910. Géographie, tourisme (guides) et voyages | C114: 1398 | D114: 45 | E114: 2 | G114: 42 | H114: 1 | L114: 1 | T114: 1 | AA114: 2 | AN114: 1 | AX114: 1493
B115: 920. Biographies et généalogie | C115: 6280 | D115: 41 | E115: 3 | G115: 25 | H115: 2 | I115: 1 | L115: 2 | M115: 1 | T115: 5 | V115: 2 | AA115: 3 | AE115: 1 | AK115: 3 | AL115: 1 | AM115: 7 | AN115: 2 | AO115: 2 | AP115: 3 | AV115: 2 | AX115: 6386
B116: 930. Préhistoire et histoire ancienne | C116: 278 | D116: 28 | E116: 3 | G116: 7 | H116: 1 | T116: 1 | AA116: 3 | AX116: 321
B117: 940. Histoire médiévale, moderne et contemporaine (sauf la France) | C117: 917 | D117: 55 | E117: 3 | G117: 11 | L117: 1 | T117: 8 | W117: 1 | AM117: 1 | AX117: 997
B118: 944. Histoire de la France (depuis 486) | C118: 1383 | D118: 25 | E118: 3 | G118: 9 | P118: 1 | AJ118: 1 | AX118: 1422
A119: Total | C119: 78038 | D119: 2521 | E119: 53 | F119: 7 | G119: 809 | H119: 35 | I119: 3 | J119: 1 | K119: 12 | L119: 121 | M119: 3 | N119: 2 | O119: 3 | P119: 31 | Q119: 11 | R119: 1 | S119: 1 | T119: 160 | U119: 2 | V119: 11 | W119: 2 | X119: 1 | Y119: 3 | Z119: 7 | AA119: 37 | AB119: 3 | AC119: 1 | AD119: 1 | AE119: 1 | AF119: 2 | AG119: 1 | AH119: 1 | AI119: 5 | AJ119: 2 | AK119: 56 | AL119: 2 | AM119: 23 | AN119: 19 | AO119: 8 | AP119: 9 | AQ119: 13 | AR119: 2 | AS119: 3 | AT119: 1 | AU119: 1 | AV119: 5 | AW119: 2 | AX119: 82036
A120: Source : Bibliographie nationale française - Livres
C122: 2017 | BC122: Total 2017
A123: Classe | B123: Indice | C123: Français | D123: Multilingue | E123: Anglais | F123: Espagnol | G123: Breton | H123: Italien | I123: Occitan | J123: Arabe | K123: Allemand | L123: Portugais | M123: Créole | N123: Latin | O123: Basque | P123: Corse | Q123: Aroumain | R123: Roumain | S123: Russe | T123: Néerlandais | U123: Chinois | V123: Rwandais | W123: Bantou | X123: Catalan | Y123: Espéranto | Z123: Tchèque | AA123: Sanskrit | AB123: Japonais | AC123: Polonais | AD123: Persan | AE123: Tamacheq | AF123: Swahili | AG123: Slavon d'église | AH123: Hébreu | AI123: Grec | AJ123: Soninké | AK123: Afrikaans | AL123: Basa | AM123: Indéterminé | AN123: Suisse alémanique | AO123: Suédois | AP123: Albanais | AQ123: Vietnamien | AR123: Dialecte français | AS123: Français moyen | AT123: Français ancien | AU123: Dialecte allemand | AV123: Arménien | AW123: Croate | AX123: Persan | AY123: Mandingue | AZ123: Malgache | BA123: Langue artificielle | BB123: Turc
A124: 0XX | B124: 000. Généralités | C124: 45 | D124: 1 | BC124: =SUM(C124:BB124) -> 46
B125: 004. Informatique | C125: 281 | F125: 28 | BC125: =SUM(C125:BB125) -> 309
B126: 010. Bibliographie | C126: 8 | BC126: =SUM(C126:BB126) -> 8
B127: 020. Sciences de l'information | C127: 59 | D127: 2 | E127: 1 | BC127: =SUM(C127:BB127) -> 62
B128: 030. Encyclopédies générales | C128: 67 | AT128: 1 | BC128: =SUM(C128:BB128) -> 68
B129: 060. Organisations à vocation savante | C129: 18 | D129: 1 | BC129: =SUM(C129:BB129) -> 19
B130: 070. Presse et édition | C130: 94 | D130: 2 | E130: 1 | BC130: =SUM(C130:BB130) -> 97
B131: 090. Bibliophilie | C131: 20 | D131: 1 | BC131: =SUM(C131:BB131) -> 21
A132: 1XX | B132: 100. Philosophie | C132: 977 | D132: 20 | E132: 6 | F132: 5 | H132: 1 | J132: 2 | AO132: 1 | BC132: =SUM(C132:BB132) -> 1012
B133: 130. Esotérisme, phénomènes paranormaux | C133: 854 | D133: 7 | E133: 6 | F133: 2 | S133: 2 | BC133: =SUM(C133:BB133) -> 871
B134: 150. Psychologie, psychanalyse | C134: 1212 | D134: 4 | E134: 7 | F134: 4 | H134: 3 | BC134: =SUM(C134:BB134) -> 1230
A135: 2XX | B135: 200. Religion (ouvrages généraux et comparatifs) | C135: 168 | J135: 1 | BC135: =SUM(C135:BB135) -> 169
B136: 220. Bible, judaïsme, christianisme | C136: 2119 | D136: 48 | E136: 13 | F136: 26 | G136: 2 | H136: 3 | K136: 2 | L136: 1 | N136: 1 | R136: 2 | V136: 1 | AC136: 1 | AG136: 1 | AH136: 2 | AS136: 1 | AZ136: 1 | BC136: =SUM(C136:BB136) -> 2224
B137: 290. Islam, religions orientales et anciennes, autres religions | C137: 413 | D137: 34 | E137: 4 | F137: 3 | J137: 3 | K137: 1 | AX137: 1 | BC137: =SUM(C137:BB137) -> 459
A138: 3XX | B138: 300. Sciences sociales | C138: 1382 | D138: 32 | E138: 6 | F138: 4 | J138: 1 | S138: 1 | AC138: 2 | AR138: 1 | AY138: 1 | BC138: =SUM(C138:BB138) -> 1430
B139: 320. Sciences politiques | C139: 1544 | D139: 9 | E139: 12 | G139: 1 | I139: 1 | J139: 3 | K139: 1 | AS139: 2 | BC139: 1573
B140: 330. Economie | C140: 1240 | D140: 11 | E140: 14 | J140: 1 | BC140: 1266
B141: 340. Droit | C141: 1987 | D141: 31 | E141: 25 | K141: 1 | BC141: 2044
B142: 350. Administration publique | C142: 378 | E142: 4 | F142: 1 | BC142: 383
B143: 355. Art et science militaires | C143: 208 | D143: 7 | E143: 8 | F143: 1 | BC143: 224
B144: 360. Problèmes et services sociaux | C144: 961 | D144: 12 | E144: 8 | F144: 2 | K144: 1 | L144: 1 | BC144: 985
B145: 370. Education et enseignement | C145: 760 | D145: 8 | E145: 3 | F145: 1 | G145: 2 | S145: 1 | BC145: 775
B146: 380. Commerce, communication, transports | C146: 217 | D146: 7 | E146: 3 | F146: 1 | BC146: 228
B147: 390. Ethnologie, anthropologie, folklore | C147: 199 | D147: 2 | E147: 2 | BC147: 203
A148: 4XX | B148: 400. Langues et linguistique | C148: 421 | D148: 485 | E148: 12 | G148: 2 | I148: 1 | K148: 1 | O148: 1 | Y148: 3 | AJ148: 1 | BC148: 927
A149: 5XX | B149: 500. Sciences (généralités) | C149: 109 | D149: 3 | E149: 2 | BC149: 114
B150: 510. Mathématiques | C150: 229 | D150: 7 | E150: 5 | BC150: 241
B151: 520. Astronomie | C151: 74 | D151: 2 | E151: 6 | BC151: 82
B152: 530. Physique | C152: 141 | D152: 1 | E152: 1 | BC152: 143
B153: 540. Chimie, minéralogie, cristallographie | C153: 51 | D153: 2 | E153: 2 | BC153: 55
B154: 550. Sciences de la Terre | C154: 85 | D154: 1 | E154: 3 | BC154: 89
B155: 560. Paléontologie | C155: 41 | BC155: 41
B156: 570. Sciences de la vie | C156: 232 | D156: 1 | E156: 2 | BC156: 235
B157: 580. Botanique | C157: 124 | D157: 6 | BC157: 130
B158: 590. Zoologie | C158: 302 | D158: 6 | E158: 1 | BC158: 309
A159: 6XX | B159: 600. Sciences appliquées | C159: 27 | BC159: 27
B160: 610. Sciences médicales et paramédicales | C160: 1892 | D160: 16 | E160: 16 | F160: 2 | H160: 2 | J160: 1 | K160: 2 | L160: 1 | T160: 1 | AC160: 2 | BC160: 1935
B161: 620. Sciences de l'ingénieur | C161: 510 | D161: 18 | E161: 40 | F161: 1 | BC161: 569
B162: 630. Agriculture, élevage | C162: 556 | D162: 8 | E162: 6 | F162: 3 | K162: 1 | BC162: 574
B163: 640. Economie domestique, hôtellerie | C163: 1780 | D163: 25 | E163: 16 | H163: 2 | K163: 2 | BC163: 1825
B164: 650. Gestion et organisation de l'entreprise | C164: 1157 | D164: 20 | E164: 6 | F164: 4 | BC164: 1187
B165: 660. Génie chimique et technologies connexes | C165: 46 | E165: 4 | BC165: 50
B166: 670. Industries | C166: 16 | D166: 1 | E166: 1 | BC166: 18
B167: 680. Métiers divers | C167: 31 | D167: 1 | BC167: 32
B168: 690. Bâtiment | C168: 59 | F168: 1 | BC168: 60
A169: 7XX | B169: 700. Arts | C169: 859 | D169: 214 | E169: 36 | F169: 1 | H169: 1 | K169: 1 | L169: 1 | T169: 2 | AO169: 2 | BC169: 1117
B170: 710. Urbanisme | C170: 111 | D170: 9 | E170: 1 | BC170: 121
B171: 720. Architecture | C171: 446 | D171: 52 | E171: 16 | F171: 1 | H171: 1 | K171: 1 | T171: 1 | BC171: 518
B172: 730. Arts plastiques, sculpture | C172: 239 | D172: 59 | E172: 10 | T172: 1 | U172: 1 | BC172: 310
B173: 740. Dessin, arts décoratifs, artisanat d'art | C173: 1069 | D173: 115 | E173: 19 | G173: 1 | J173: 1 | AM173: 1 | BC173: 1206
B174: 750. Peinture | C174: 583 | D174: 132 | E174: 13 | F174: 1 | K174: 1 | S174: 1 | BC174: 731
B175: 760. Arts graphiques | C175: 71 | D175: 8 | E175: 1 | BC175: 80
B176: 770. Photographie | C176: 622 | D176: 187 | E176: 35 | H176: 1 | S176: 1 | AM176: 2 | BC176: 848
B177: 780. Musique | C177: 372 | D177: 12 | E177: 5 | H177: 2 | AX177: 1 | BC177: 392
B178: 790. Spectacles et loisirs (généralités) | C178: 32 | D178: 1 | F178: 1 | BC178: 34
B179: 791. Audiovisuel | C179: 490 | D179: 12 | E179: 4 | F179: 2 | BC179: 508
B180: 792. Représentations scéniques | C180: 127 | D180: 7 | BC180: 134
B181: 793. Jeux | C181: 676 | D181: 5 | E181: 2 | F181: 1 | G181: 2 | BC181: 686
B182: 796. Sports | C182: 406 | D182: 17 | E182: 2 | BC182: 425
A183: 8XX | B183: 800. Histoire et critique littéraires | C183: 1016 | D183: 84 | E183: 20 | F183: 7 | G183: 1 | J183: 1 | S183: 2 | U183: 1 | AC183: 2 | AS183: 3 | BC183: 1137
B184: 801. Poésie | C184: 3023 | D184: 245 | E184: 28 | F184: 12 | G184: 11 | H184: 4 | I184: 3 | J184: 1 | K184: 1 | M184: 2 | O184: 1 | P184: 2 | Q184: 1 | S184: 1 | Z184: 1 | AC184: 1 | AS184: 2 | AV184: 1 | BA184: 1 | BC184: 3341
B185: 802. Théâtre | C185: 878 | D185: 21 | E185: 3 | F185: 16 | G185: 9 | H185: 1 | I185: 1 | L185: 3 | AS185: 2 | AW185: 1 | BC185: 935
B186: 803. Romans et fiction romanesque | C186: 15067 | D186: 69 | E186: 62 | F186: 15 | G186: 14 | H186: 3 | I186: 16 | J186: 7 | K186: 3 | L186: 4 | M186: 1 | O186: 1 | P186: 2 | S186: 1 | W186: 1 | AF186: 1 | AO186: 2 | AR186: 2 | AS186: 1 | AT186: 1 | AY186: 1 | BC186: 15274
B187: 804. Essais littéraires et écrits divers | C187: 1790 | D187: 57 | E187: 9 | F187: 2 | H187: 1 | I187: 4 | J187: 2 | K187: 2 | L187: 1 | O187: 1 | AC187: 1 | AR187: 4 | AS187: 1 | BC187: 1875
B188: 805. Bandes dessinées | C188: 4128 | D188: 21 | E188: 3 | F188: 1 | G188: 6 | H188: 1 | I188: 2 | K188: 1 | AR188: 1 | BC188: 4164
B189: 809. Littérature pour la jeunesse | C189: 6976 | D189: 141 | E189: 57 | F189: 7 | G189: 130 | H189: 5 | I189: 6 | K189: 2 | M189: 1 | O189: 7 | P189: 1 | U189: 1 | W189: 1 | Y189: 1 | AB189: 1 | AE189: 1 | AM189: 5 | AQ189: 1 | AR189: 1 | AZ189: 1 | BC189: 7346
A190: 9XX | B190: 900. Histoire et géographie (généralités) | C190: 154 | D190: 2 | K190: 1 | BC190: 157
B191: 910. Géographie, tourisme (guides) et voyages | C191: 1377 | D191: 36 | E191: 38 | H191: 1 | J191: 1 | K191: 1 | L191: 1 | S191: 2 | U191: 8 | AB191: 1 | BC191: 1466
B192: 920. Biographies et généalogie | C192: 5075 | D192: 37 | E192: 23 | F192: 6 | G192: 5 | H192: 3 | I192: 1 | J192: 1 | K192: 8 | L192: 2 | M192: 1 | S192: 2 | T192: 1 | AC192: 4 | AU192: 1 | AW192: 2 | BC192: 5172
B193: 930. Préhistoire et histoire ancienne | C193: 289 | D193: 42 | E193: 7 | F193: 1 | BC193: 339
B194: 940. Histoire médiévale, moderne et contemporaine (sauf la France) | C194: 894 | D194: 50 | E194: 15 | F194: 5 | H194: 1 | AC194: 5 | BC194: 970
B195: 944. Histoire de la France (depuis 486) | C195: 1301 | D195: 21 | E195: 7 | H195: 1 | K195: 2 | P195: 1 | T195: 1 | AS195: 2 | BC195: 1336
A196: Total | C196: =SUM(C124:C195) -> 71165 | D196: =SUM(D124:D195) -> 2498 | E196: 662 | F196: 168 | G196: 186 | H196: 37 | I196: 35 | J196: 26 | K196: 36 | L196: 15 | M196: 5 | N196: 1 | O196: 11 | P196: 6 | Q196: 1 | R196: 2 | S196: 14 | T196: 7 | U196: 11 | V196: 1 | W196: 2 | X196: 0 | Y196: 4 | Z196: 1 | AA196: 0 | AB196: 2 | AC196: 18 | AD196: 0 | AE196: 1 | AF196: 1 | AG196: 1 | AH196: 2 | AI196: 0 | AJ196: 1 | AK196: 0 | AL196: 0 | AM196: 8 | AN196: 0 | AO196: 5 | AP196: 0 | AQ196: 1 | AR196: 9 | AS196: 14 | AT196: 2 | AU196: 1 | AV196: 1 | AW196: 3 | AX196: 2 | AY196: 2 | AZ196: 2 | BA196: 1 | BB196: 0 | BC196: =SUM(BC124:BC195) -> 74971
A197: Source : Bibliographie nationale française - Livres
C199: 2016 | BC199: Total 2016
A200: Classe | B200: Indice | C200: Français | D200: Multilingue | E200: Anglais | F200: Espagnol | G200: Allemand | H200: Breton | I200: Occitan | J200: Italien | K200: Portugais | L200: Basque | M200: Russe | N200: Créole | O200: Arabe | P200: Corse | Q200: Chinois | R200: Français moyen | S200: Dialecte français | T200: Espéranto | U200: Français ancien | V200: Néérlandais | W200: Polonais | X200: Catalan | Y200: Alsacien | Z200: Hongrois | AA200: Latin | AB200: Wolof | AC200: Roumain | AD200: Bantou | AE200: Dialecte allemand | AF200: Croate | AG200: Tamacheq | AH200: Thaï | AI200: Peul | AJ200: Lingala | AK200: Volapük | AL200: Japonais | AM200: Serbe | AN200: Langues nahuatl | AO200: Turc | AP200: Kabbyle | AQ200: Langues berbères | AR200: Khmer central | AS200: Swahili | AT200: Tchèque | AU200: Bosniaque | AV200: Inconnue | AW200: Vietnamien | AX200: Hébreu | AY200: Arménien | AZ200: Sanskrit | BA200: Langues austronésiennes | BB200: Rwanda
A201: 0XX | B201: 000. Généralités | C201: 53 | D201: 5 | E201: 1 | BC201: 59
B202: 004. Informatique | C202: 323 | D202: 1 | F202: 25 | BC202: 349
B203: 010. Bibliographie | C203: 4 | D203: 0 | BC203: 4
B204: 020. Sciences de l'information | C204: 75 | D204: 0 | BC204: 75
B205: 030. Encyclopédies générales | C205: 37 | D205: 0 | BC205: 37
B206: 060. Organisations à vocation savante | C206: 6 | D206: 2 | E206: 1 | BC206: 9
B207: 070. Presse et édition | C207: 63 | D207: 1 | E207: 3 | BC207: 67
... 67 more rows

Sheet Traductions
A1: Nombre de livres en langue originale ou traduits
C2: 2016 | E2: 2017 | G2: 2018
A3: Classe | B3: Indice | C3: Traduction | D3: Hors traduction | E3: Traduction | F3: Hors traduction | G3: Traduction | H3: Hors traduction
A4: 0XX | B4: 000. Généralités | C4: 8 | D4: 51 | F4: 46 | G4: 3 | H4: 67
B5: 004. Informatique | C5: 94 | D5: 255 | E5: 82 | F5: 227 | G5: 96 | H5: 255
B6: 010. Bibliographie | D6: 4 | F6: 8 | H6: 3
B7: 020. Sciences de l'information | D7: 75 | E7: 2 | F7: 60 | G7: 3 | H7: 55
B8: 030. Encyclopédies générales | C8: 1 | D8: 36 | E8: 12 | F8: 56 | G8: 7 | H8: 54
B9: 060. Organisations à vocation savante | C9: 2 | D9: 7 | F9: 19 | G9: 1 | H9: 25
B10: 070. Presse et édition | C10: 5 | D10: 62 | E10: 4 | F10: 93 | G10: 7 | H10: 91
B11: 090. Bibliophilie | C11: 7 | D11: 86 | F11: 21 | G11: 1 | H11: 23
A12: 1XX | B12: 100. Philosophie | C12: 124 | D12: 876 | E12: 144 | F12: 868 | G12: 181 | H12: 939
B13: 130. Esotérisme, phénomènes paranormaux | C13: 244 | D13: 687 | E13: 231 | F13: 640 | G13: 247 | H13: 726
B14: 150. Psychologie, psychanalyse | C14: 216 | D14: 955 | E14: 217 | F14: 1013 | G14: 249 | H14: 1217
A15: 2XX | B15: 200. Religion (ouvrages généraux et comparatifs) | C15: 23 | D15: 177 | E15: 19 | F15: 150 | G15: 31 | H15: 165
B16: 220. Bible, judaïsme, christianisme | C16: 497 | D16: 1792 | E16: 459 | F16: 1765 | G16: 441 | H16: 1604
B17: 290. Islam, religions orientales et anciennes, autres religions | C17: 212 | D17: 301 | E17: 152 | F17: 307 | G17: 268 | H17: 280
A18: 3XX | B18: 300. Sciences sociales | C18: 95 | D18: 1187 | E18: 101 | F18: 1329 | G18: 153 | H18: 1284
B19: 320. Sciences politiques | C19: 100 | D19: 1164 | E19: 103 | F19: 1470 | G19: 118 | H19: 1146
B20: 330. Economie | C20: 91 | D20: 1128 | E20: 69 | F20: 1197 | G20: 84 | H20: 1150
B21: 340. Droit | C21: 38 | D21: 1730 | E21: 10 | F21: 2034 | G21: 59 | H21: 1916
B22: 350. Administration publique | D22: 474 | E22: 1 | F22: 382 | G22: 3 | H22: 479
B23: 355. Art et science militaires | C23: 15 | D23: 136 | E23: 20 | F23: 204 | G23: 23 | H23: 176
B24: 360. Problèmes et services sociaux | C24: 52 | D24: 919 | E24: 43 | F24: 942 | G24: 63 | H24: 977
B25: 370. Education et enseignement | C25: 37 | D25: 679 | E25: 23 | F25: 752 | G25: 55 | H25: 830
B26: 380. Commerce, communication, transports | C26: 12 | D26: 185 | E26: 6 | F26: 222 | G26: 10 | H26: 234
B27: 390. Ethnologie, anthropologie, folklore | C27: 21 | D27: 186 | E27: 22 | F27: 181 | G27: 20 | H27: 202
A28: 4XX | B28: 400. Langues et linguistique | C28: 334 | D28: 468 | E28: 45 | F28: 882 | G28: 446 | H28: 456
A29: 5XX | B29: 500. Sciences (généralités) | C29: 14 | D29: 104 | E29: 22 | F29: 92 | G29: 35 | H29: 110
B30: 510. Mathématiques | C30: 23 | D30: 242 | E30: 15 | F30: 226 | G30: 31 | H30: 246
B31: 520. Astronomie | C31: 18 | D31: 63 | E31: 15 | F31: 67 | G31: 29 | H31: 62
B32: 530. Physique | C32: 18 | D32: 139 | E32: 8 | F32: 135 | G32: 23 | H32: 130
B33: 540. Chimie, minéralogie, cristallographie | C33: 5 | D33: 38 | E33: 5 | F33: 50 | G33: 6 | H33: 39
B34: 550. Sciences de la Terre | C34: 16 | D34: 97 | E34: 13 | F34: 76 | G34: 27 | H34: 94
B35: 560. Paléontologie | C35: 10 | D35: 34 | E35: 11 | F35: 30 | G35: 14 | H35: 42
B36: 570. Sciences de la vie | C36: 18 | D36: 141 | E36: 35 | F36: 200 | G36: 42 | H36: 210
B37: 580. Botanique | C37: 12 | D37: 96 | E37: 10 | F37: 120 | G37: 32 | H37: 126
B38: 590. Zoologie | C38: 56 | D38: 198 | E38: 45 | F38: 264 | G38: 93 | H38: 279
A39: 6XX | B39: 600. Sciences appliquées | C39: 3 | D39: 12 | E39: 4 | F39: 23 | G39: 6 | H39: 21
B40: 610. Sciences médicales et paramédicales | C40: 240 | D40: 1854 | E40: 217 | F40: 1718 | G40: 285 | H40: 2161
B41: 620. Sciences de l'ingénieur | C41: 78 | D41: 624 | E41: 58 | F41: 511 | G41: 110 | H41: 627
B42: 630. Agriculture, élevage | C42: 50 | D42: 378 | E42: 99 | F42: 475 | G42: 118 | H42: 483
B43: 640. Economie domestique, hôtellerie | C43: 168 | D43: 1206 | E43: 283 | F43: 1542 | G43: 261 | H43: 1554
B44: 650. Gestion et organisation de l'entreprise | C44: 63 | D44: 1144 | E44: 53 | F44: 1134 | G44: 89 | H44: 1073
B45: 660. Génie chimique et technologies connexes | C45: 2 | D45: 60 | E45: 2 | F45: 48 | G45: 7 | H45: 64
B46: 670. Industries | C46: 4 | D46: 21 | E46: 3 | F46: 15 | H46: 20
B47: 680. Métiers divers | C47: 5 | D47: 38 | E47: 4 | F47: 28 | G47: 3 | H47: 31
B48: 690. Bâtiment | C48: 6 | D48: 73 | E48: 3 | F48: 57 | G48: 5 | H48: 79
A49: 7XX | B49: 700. Arts | C49: 310 | D49: 1131 | E49: 239 | F49: 878 | G49: 308 | H49: 845
B50: 710. Urbanisme | C50: 15 | D50: 99 | E50: 11 | F50: 110 | G50: 15 | H50: 79
B51: 720. Architecture | C51: 112 | D51: 385 | E51: 82 | F51: 436 | G51: 101 | H51: 413
B52: 730. Arts plastiques, sculpture | C52: 62 | D52: 251 | E52: 63 | F52: 247 | G52: 48 | H52: 218
B53: 740. Dessin, arts décoratifs, artisanat d'art | C53: 348 | D53: 824 | E53: 333 | F53: 873 | G53: 392 | H53: 907
B54: 750. Peinture | C54: 235 | D54: 477 | E54: 177 | F54: 554 | G54: 205 | H54: 560
B55: 760. Arts graphiques | C55: 15 | D55: 69 | E55: 14 | F55: 66 | G55: 14 | H55: 53
B56: 770. Photographie | C56: 282 | D56: 561 | E56: 193 | F56: 655 | G56: 223 | H56: 581
B57: 780. Musique | C57: 60 | D57: 311 | E57: 56 | F57: 336 | G57: 55 | H57: 378
B58: 790. Spectacles et loisirs (généralités) | C58: 5 | D58: 33 | E58: 2 | F58: 32 | G58: 3 | H58: 35
B59: 791. Audiovisuel | C59: 62 | D59: 420 | E59: 134 | F59: 374 | G59: 85 | H59: 396
B60: 792. Représentations scéniques | C60: 12 | D60: 113 | E60: 9 | F60: 125 | G60: 20 | H60: 138
B61: 793. Jeux | C61: 133 | D61: 480 | E61: 177 | F61: 509 | G61: 288 | H61: 514
B62: 796. Sports | C62: 50 | D62: 396 | E62: 60 | F62: 365 | G62: 75 | H62: 540
A63: 8XX | B63: 800. Histoire et critique littéraires | C63: 137 | D63: 1174 | E63: 47 | F63: 1090 | G63: 115 | H63: 973
B64: 801. Poésie | C64: 406 | D64: 2981 | E64: 335 | F64: 3006 | G64: 406 | H64: 3402
B65: 802. Théâtre | C65: 153 | D65: 737 | E65: 129 | F65: 806 | G65: 129 | H65: 717
B66: 803. Romans et fiction romanesque | C66: 4480 | D66: 11675 | E66: 3997 | F66: 11277 | G66: 4418 | H66: 13343
B67: 804. Essais littéraires et écrits divers | C67: 206 | D67: 1893 | E67: 160 | F67: 1715 | G67: 208 | H67: 1912
B68: 805. Bandes dessinées | C68: 2756 | D68: 2156 | E68: 2296 | F68: 1868 | G68: 2664 | H68: 2128
B69: 809. Littérature pour la jeunesse | C69: 2069 | D69: 5207 | E69: 1855 | F69: 5491 | G69: 2112 | H69: 5636
A70: 9XX | B70: 900. Histoire et géographie (généralités) | C70: 16 | D70: 164 | E70: 13 | F70: 144 | G70: 27 | H70: 148
B71: 910. Géographie, tourisme (guides) et voyages | C71: 204 | D71: 1177 | E71: 198 | F71: 1268 | G71: 239 | H71: 1254
B72: 920. Biographies et généalogie | C72: 567 | D72: 4642 | E72: 544 | F72: 4628 | G72: 778 | H72: 5608
B73: 930. Préhistoire et histoire ancienne | C73: 79 | D73: 302 | E73: 37 | F73: 302 | G73: 52 | H73: 269
B74: 940. Histoire médiévale, moderne et contemporaine (sauf la France) | C74: 157 | D74: 757 | E74: 140 | F74: 830 | G74: 174 | H74: 823
B75: 944. Histoire de la France (depuis 486) | C75: 45 | D75: 1320 | E75: 33 | F75: 1303 | G75: 54 | H75: 1368
A76: Total | C76: 16013 | D76: 59917 | E76: =SUM(E4:E75) -> 14004 | F76: =SUM(F4:F75) -> 60967 | G76: =SUM(G4:G75) -> 16993 | H76: =SUM(H4:H75) -> 65043
A77: Source : Bibliographie nationale française - Livres
A79: Ouvrages traduits par langue originale - synthèse
C81: Traduction | K81: Total
A82: Année | B82: Classe | C82: Anglais | D82: Autres | E82: Japonais | F82: Français | G82: Allemand | H82: Italien | I82: Espagnol | J82: Coréen
A83: 2016 | B83: 0XX | C83: 75 | D83: 10 | F83: 29 | G83: 2 | I83: 1 | K83: =SUM(C83:J83) -> 117
B84: 1XX | C84: 369 | D84: 16 | E84: 7 | F84: 13 | G84: 66 | H84: 31 | I84: 13 | K84: =SUM(C84:J84) -> 515
B85: 2XX | C85: 305 | D85: 32 | E85: 12 | F85: 16 | G85: 51 | H85: 74 | I85: 19 | K85: 509
B86: 3XX | C86: 166 | D86: 127 | E86: 4 | F86: 45 | G86: 25 | H86: 32 | I86: 11 | K86: 410
B87: 4XX | C87: 26 | D87: 290 | F87: 3 | G87: 1 | H87: 3 | K87: 323
B88: 5XX | C88: 113 | D88: 21 | E88: 2 | F88: 12 | G88: 18 | H88: 6 | I88: 2 | J88: 2 | K88: 176
B89: 6XX | C89: 388 | D89: 70 | E89: 6 | F89: 29 | G89: 83 | H89: 9 | I89: 9 | K89: 594
B90: 7XX | C90: 600 | D90: 211 | E90: 63 | F90: 552 | G90: 139 | H90: 45 | I90: 22 | K90: 1632
B91: 8XX | C91: 5724 | D91: 261 | E91: 1820 | F91: 210 | G91: 339 | H91: 316 | I91: 338 | J91: 126 | K91: 9134
B92: 9XX | C92: 511 | D92: 138 | E92: 8 | F92: 103 | G92: 76 | H92: 66 | I92: 31 | J92: 2 | K92: 935
A93: Total 2016 | C93: 8277 | D93: 2844 | E93: 1922 | F93: 1012 | G93: 800 | H93: 582 | I93: 446 | J93: 130 | K93: =SUM(C93:J93) -> 16013
A95: 2017 | B95: 0XX | C95: 66 | D95: 1 | F95: 31 | G95: 1 | H95: 1 | K95: =SUM(C95:J95) -> 100
B96: 1XX | C96: 355 | D96: 76 | E96: 7 | F96: 18 | G96: 79 | H96: 44 | I96: 13 | K96: =SUM(C96:J96) -> 592
B97: 2XX | C97: 237 | D97: 194 | E97: 3 | F97: 29 | G97: 64 | H97: 70 | I97: 33 | K97: 630
B98: 3XX | C98: 223 | D98: 23 | F98: 40 | G98: 54 | H98: 39 | I98: 19 | K98: 398
B99: 4XX | C99: 26 | D99: 6 | F99: 6 | G99: 2 | H99: 3 | I99: 2 | K99: 45
B100: 5XX | C100: 141 | D100: 8 | E100: 2 | F100: 2 | G100: 20 | H100: 5 | I100: 1 | K100: 179
B101: 6XX | C101: 471 | D101: 32 | E101: 3 | F101: 48 | G101: 142 | H101: 22 | I101: 8 | K101: 726
B102: 7XX | C102: 692 | D102: 57 | E102: 57 | F102: 511 | G102: 130 | H102: 59 | I102: 44 | K102: 1550
B103: 8XX | C103: 5162 | D103: 953 | E103: 1510 | F103: 197 | G103: 328 | H103: 313 | I103: 317 | J103: 39 | K103: 8819
B104: 9XX | C104: 488 | D104: 157 | E104: 8 | F104: 124 | G104: 73 | H104: 64 | I104: 51 | K104: 965
A105: Total 2017 | C105: =SUM(C95:C104) -> 7861 | D105: =SUM(D95:D104) -> 1507 | E105: 1590 | F105: 1006 | G105: 893 | H105: 620 | I105: 488 | J105: 39 | K105: =SUM(C105:J105) -> 14004
A107: 2018 | B107: 0XX | C107: 61 | D107: 8 | F107: 47 | G107: 1 | H107: 1 | K107: =SUM(C107:J107) -> 118
B108: 1XX | C108: 395 | D108: 111 | E108: 9 | F108: 26 | G108: 93 | H108: 23 | I108: 19 | J108: 1 | K108: =SUM(C108:J108) -> 677
B109: 2XX | C109: 244 | D109: 291 | E109: 5 | F109: 16 | G109: 47 | H109: 62 | I109: 75 | K109: 740
B110: 3XX | C110: 250 | D110: 182 | E110: 5 | F110: 59 | G110: 31 | H110: 41 | I110: 20 | K110: 588
B111: 4XX | C111: 17 | D111: 420 | F111: 2 | H111: 4 | I111: 3 | K111: 446
B112: 5XX | C112: 201 | D112: 45 | E112: 2 | F112: 24 | G112: 45 | H112: 9 | I112: 5 | J112: 1 | K112: 332
B113: 6XX | C113: 526 | D113: 125 | E113: 11 | F113: 55 | G113: 118 | H113: 39 | I113: 9 | J113: 1 | K113: 884
B114: 7XX | C114: 734 | D114: 318 | E114: 73 | F114: 515 | G114: 100 | H114: 59 | I114: 29 | J114: 4 | K114: 1832
B115: 8XX | C115: 5866 | D115: 1342 | E115: 1622 | F115: 232 | G115: 317 | H115: 319 | I115: 312 | J115: 42 | K115: 10052
B116: 9XX | C116: 689 | D116: 284 | E116: 14 | F116: 118 | G116: 95 | H116: 77 | I116: 46 | J116: 1 | K116: 1324
A117: Total 2018 | C117: 8983 | D117: 3126 | E117: 1741 | F117: 1094 | G117: 847 | H117: 634 | I117: 518 | J117: 50 | K117: 16993
A118: Source : Bibliographie nationale française - Livres
A120: Ouvrages traduits par langue originale - détail par année
C122: Traduction | CI122: Total
C123: 2018
A124: Classe | B124: Indice | C124: afrikaans | D124: albanais | E124: allemand | F124: ancien français | G124: anglais | H124: anglais moyen | I124: arabe | J124: aragonais | K124: arménien | L124: azéri | M124: basque | N124: bengali | O124: biélorusse | P124: breton | Q124: bulgare | R124: catalan | S124: chinois | T124: copte | U124: coréen | V124: corse | W124: créole | X124: croate | Y124: danois | Z124: dialecte allemand | AA124: dialecte français | AB124: dialecte italien | AC124: égyptien | AD124: espagnol | AE124: espéranto | AF124: estonien | AG124: finnois | AH124: français | AI124: français moyen | AJ124: galicien | AK124: géorgien | AL124: grec | AM124: grec ancien | AN124: hébreu | AO124: hindi | AP124: hongrois | AQ124: indéterminé | AR124: indonésien | AS124: irlandais | AT124: islandais | AU124: italien | AV124: japonais | AW124: kabyle | AX124: kannada | AY124: kazakh | AZ124: khmer | BA124: kirghiz | BB124: kurde | BC124: langue altaïque | BD124: langue austronésienne | BE124: langue berbère | BF124: langue des signes français | BG124: langue finno-ougrienne | BH124: langue tai | BI124: langue zandé | BJ124: latin | BK124: letton | BL124: lituanien | BM124: macédonien | BN124: malgache | BO124: marathe | BP124: mongol | BQ124: moyen haut allemand | BR124: multilingue | BS124: néerlandais | BT124: néerlandais moyen | BU124: norvégien | BV124: norvégien nynorsk | BW124: occitan | BX124: occitan ancien | BY124: ourdou | BZ124: pali | CA124: persan | CB124: polonais | CC124: portugais | CD124: roumain | CE124: russe | CF124: rwanda | CG124: sanskrit | CH124: sarde | CI124: serbe | CJ124: slavon d'église | CK124: slovaque | CL124: slovène | CM124: soninké | CN124: suédois | CO124: syriaque | CP124: tahitien | CQ124: tamoul | CR124: tchèque | CS124: thaï | CT124: tibétain | CU124: turc | CV124: ukrainien | CW124: vietnamien | CX124: yiddish | CZ124: langues multiples | DA124: Total général
A125: 0XX | B125: 000. Généralités | G125: 2 | AU125: 1 | DA125: 3
B126: 004. Informatique | G126: 48 | AH126: 47 | CY126: 1 | DA126: 96
B127: 030. Encyclopédies générales | E127: 1 | G127: 1 | CB127: 1 | DA127: 3
B128: 060. Organisations à vocation savante | G128: 6 | BJ128: 1 | DA128: 7
B129: 070. Presse et édition | CY129: 1 | DA129: 1
B130: 090. Bibliophilie | G130: 4 | CY130: 3 | DA130: 7
A131: 1XX | B131: 100. Philosophie | CY131: 1 | DA131: 1
B132: 130. Esotérisme, phénomènes paranormaux | E132: 46 | G132: 46 | I132: 1 | S132: 2 | Y132: 2 | AD132: 2 | AH132: 2 | AM132: 22 | AU132: 15 | AV132: 1 | BJ132: 20 | BS132: 2 | CC132: 1 | CD132: 1 | CE132: 6 | CO132: 1 | CR132: 1 | CY132: 10 | DA132: 181
B133: 150. Psychologie, psychanalyse | E133: 14 | G133: 177 | I133: 1 | AD133: 4 | AH133: 17 | AU133: 2 | AV133: 4 | BJ133: 6 | CC133: 3 | CE133: 17 | CY133: 2 | DA133: 247
A134: 2XX | B134: 200. Religion (ouvrages généraux et comparatifs) | E134: 33 | G134: 172 | U134: 1 | Y134: 1 | AD134: 13 | AG134: 1 | AH134: 7 | AU134: 6 | AV134: 4 | BS134: 5 | CC134: 2 | CE134: 1 | CY134: 3 | DA134: 249
B135: 220. Bible, judaïsme, christianisme | E135: 5 | F135: 1 | G135: 15 | I135: 1 | AD135: 1 | AU135: 1 | AV135: 2 | CE135: 1 | CY135: 4 | DA135: 31
B136: 290. Islam, religions orientales et anciennes, autres religions | E136: 40 | G136: 152 | T136: 1 | AB136: 1 | AD136: 13 | AH136: 12 | AI136: 1 | AL136: 5 | AM136: 22 | AN136: 47 | AU136: 60 | BJ136: 44 | BS136: 3 | CB136: 1 | CC136: 5 | CD136: 4 | CE136: 4 | CJ136: 1 | CO136: 2 | CR136: 1 | CW136: 1 | CX136: 1 | CY136: 19 | CZ136: 1 | DA136: 441
A137: 3XX | B137: 300. Sciences sociales | E137: 2 | G137: 77 | I137: 45 | L137: 1 | S137: 9 | AC137: 1 | AD137: 61 | AH137: 4 | AO137: 5 | AU137: 1 | AV137: 3 | BO137: 2 | BR137: 3 | BZ137: 1 | CA137: 2 | CE137: 1 | CG137: 9 | CQ137: 3 | CS137: 2 | CT137: 14 | CU137: 1 | CY137: 21 | DA137: 268
B138: 320. Sciences politiques | E138: 9 | G138: 80 | I138: 2 | R138: 1 | S138: 2 | AD138: 7 | AH138: 6 | AN138: 2 | AU138: 7 | AV138: 1 | BH138: 1 | CB138: 1 | CC138: 1 | CD138: 1 | CY138: 32 | DA138: 153
B139: 330. Economie | E139: 9 | G139: 45 | I139: 1 | AD139: 8 | AH139: 4 | AM139: 1 | AP139: 1 | AU139: 25 | AV139: 1 | BU139: 1 | CE139: 1 | CF139: 1 | CG139: 1 | CY139: 19 | DA139: 118
B140: 340. Droit | E140: 3 | G140: 49 | S140: 1 | AH140: 12 | AU140: 3 | AV140: 2 | BS140: 3 | BW140: 1 | CY140: 10 | DA140: 84
B141: 350. Administration publique | E141: 4 | G141: 5 | AD141: 2 | AH141: 2 | AL141: 1 | AU141: 1 | BJ141: 4 | CY141: 40 | DA141: 59
B142: 355. Art et science militaires | E142: 1 | CY142: 2 | DA142: 3
B143: 360. Problèmes et services sociaux | E143: 1 | G143: 5 | S143: 5 | AD143: 1 | AH143: 2 | AU143: 2 | BJ143: 1 | CY143: 6 | DA143: 23
B144: 370. Education et enseignement | G144: 33 | AG144: 1 | AH144: 10 | AU144: 1 | BF144: 1 | BS144: 1 | CC144: 1 | CE144: 1 | CF144: 1 | CM144: 1 | CY144: 12 | DA144: 63
B145: 380. Commerce, communication, transports | E145: 3 | G145: 20 | Y145: 1 | AD145: 2 | AH145: 18 | AU145: 2 | BJ145: 1 | CY145: 8 | DA145: 55
B146: 390. Ethnologie, anthropologie, folklore | G146: 3 | AH146: 4 | CY146: 3 | DA146: 10
A147: 4XX | B147: 400. Langues et linguistique | E147: 1 | G147: 10 | AH147: 1 | AN147: 1 | AV147: 1 | CM147: 1 | CY147: 5 | DA147: 20
A148: 5XX | B148: 500. Sciences (généralités) | G148: 17 | T148: 1 | AD148: 3 | AH148: 2 | AM148: 2 | AU148: 4 | AY148: 1 | BJ148: 3 | BS148: 1 | CC148: 3 | CN148: 1 | CY148: 408 | DA148: 446
B149: 510. Mathématiques | E149: 3 | G149: 25 | AH149: 1 | AU149: 2 | BS149: 1 | CY149: 3 | DA149: 35
B150: 520. Astronomie | E150: 1 | G150: 19 | I150: 1 | AD150: 1 | AH150: 1 | AV150: 1 | BJ150: 2 | CY150: 5 | DA150: 31
B151: 530. Physique | E151: 2 | G151: 24 | AH151: 1 | AU151: 1 | CY151: 1 | DA151: 29
B152: 540. Chimie, minéralogie, cristallographie | E152: 2 | G152: 13 | AH152: 3 | AU152: 1 | AV152: 1 | CV152: 1 | CY152: 2 | DA152: 23
B153: 550. Sciences de la Terre | G153: 5 | AM153: 1 | DA153: 6
B154: 560. Paléontologie | E154: 2 | G154: 9 | S154: 1 | Y154: 1 | AH154: 6 | BS154: 1 | CB154: 1 | CY154: 6 | DA154: 27
B155: 570. Sciences de la vie | G155: 11 | CY155: 3 | DA155: 14
B156: 580. Botanique | E156: 4 | G156: 22 | U156: 1 | AH156: 8 | AU156: 4 | CY156: 3 | DA156: 42
B157: 590. Zoologie | E157: 17 | G157: 10 | AH157: 2 | CB157: 1 | CN157: 1 | CY157: 1 | DA157: 32
A158: 6XX | B158: 600. Sciences appliquées | E158: 14 | G158: 63 | S158: 1 | AD158: 4 | AH158: 2 | AU158: 1 | BS158: 3 | CY158: 5 | DA158: 93
B159: 610. Sciences médicales et paramédicales | G159: 5 | CY159: 1 | DA159: 6
B160: 620. Sciences de l'ingénieur | E160: 36 | G160: 186 | AD160: 6 | AH160: 14 | AL160: 1 | AM160: 1 | AU160: 9 | AV160: 3 | BJ160: 2 | BS160: 5 | BU160: 2 | CB160: 2 | CN160: 2 | CV160: 1 | CY160: 15 | DA160: 285
B161: 630. Agriculture, élevage | E161: 8 | G161: 65 | AD161: 1 | AH161: 12 | AU161: 5 | CB161: 1 | CY161: 18 | DA161: 110
B162: 640. Economie domestique, hôtellerie | E162: 33 | G162: 62 | AH162: 10 | AU162: 3 | AV162: 2 | CN162: 2 | CY162: 6 | DA162: 118
B163: 650. Gestion et organisation de l'entreprise | E163: 40 | G163: 145 | AD163: 1 | AG163: 1 | AH163: 11 | AU163: 22 | AV163: 6 | BJ163: 1 | BS163: 10 | BU163: 1 | CC163: 1 | CE163: 1 | CN163: 3 | CY163: 18 | DA163: 261
B164: 660. Génie chimique et technologies connexes | E164: 1 | G164: 57 | U164: 1 | AD164: 1 | AH164: 6 | CY164: 23 | DA164: 89
B165: 670. Industries | G165: 4 | AH165: 1 | CY165: 2 | DA165: 7
B166: 680. Métiers divers | G166: 1 | AH166: 1 | BU166: 1 | DA166: 3
B167: 690. Bâtiment | G167: 1 | CY167: 4 | DA167: 5
A168: 7XX | B168: 700. Arts | E168: 8 | G168: 49 | S168: 2 | Y168: 1 | AD168: 5 | AH168: 152 | AU168: 12 | AV168: 3 | BS168: 2 | CB168: 2 | CC168: 1 | CE168: 1 | CU168: 1 | CY168: 69 | DA168: 308
B169: 710. Urbanisme | G169: 7 | AH169: 6 | CY169: 2 | DA169: 15
B170: 720. Architecture | E170: 4 | G170: 17 | AH170: 50 | AU170: 6 | CY170: 24 | DA170: 101
B171: 730. Arts plastiques, sculpture | E171: 3 | G171: 4 | AD171: 1 | AH171: 27 | CB171: 1 | CY171: 12 | DA171: 48
B172: 740. Dessin, arts décoratifs, artisanat d'art | E172: 40 | G172: 184 | I172: 2 | U172: 1 | Y172: 2 | AD172: 8 | AG172: 1 | AH172: 57 | AL172: 1 | AU172: 9 | AV172: 52 | BS172: 5 | BU172: 2 | CC172: 1 | CE172: 4 | CN172: 2 | CY172: 21 | DA172: 392
B173: 750. Peinture | E173: 14 | G173: 37 | U173: 1 | AD173: 5 | AH173: 93 | AU173: 5 | AV173: 1 | BR173: 2 | BS173: 3 | CB173: 4 | CY173: 40 | DA173: 205
B174: 760. Arts graphiques | E174: 3 | G174: 1 | AD174: 1 | AH174: 1 | AU174: 1 | CY174: 7 | DA174: 14
B175: 770. Photographie | E175: 2 | G175: 49 | S175: 2 | AD175: 1 | AH175: 100 | AU175: 3 | AV175: 3 | BS175: 3 | CC175: 2 | CE175: 1 | CY175: 57 | DA175: 223
B176: 780. Musique | E176: 2 | G176: 30 | AD176: 2 | AH176: 7 | AU176: 1 | AV176: 1 | BJ176: 1 | CU176: 1 | CY176: 10 | DA176: 55
B177: 790. Spectacles et loisirs (généralités) | G177: 1 | AH177: 1 | CY177: 1 | DA177: 3
B178: 791. Audiovisuel | E178: 1 | G178: 55 | U178: 1 | AH178: 7 | AU178: 13 | CE178: 1 | CY178: 7 | DA178: 85
B179: 792. Représentations scéniques | E179: 2 | G179: 3 | U179: 1 | AH179: 5 | AU179: 2 | AV179: 1 | CY179: 6 | DA179: 20
B180: 793. Jeux | E180: 17 | G180: 243 | AD180: 5 | AH180: 2 | AU180: 4 | AV180: 9 | BS180: 2 | CB180: 1 | CE180: 2 | CY180: 3 | DA180: 288
B181: 796. Sports | E181: 4 | G181: 54 | S181: 1 | AD181: 1 | AH181: 7 | AM181: 1 | AU181: 3 | AV181: 3 | CN181: 1 | DA181: 75
A182: 8XX | B182: 800. Histoire et critique littéraires | E182: 5 | G182: 19 | I182: 2 | AD182: 2 | AH182: 3 | AM182: 2 | AN182: 1 | AU182: 5 | AV182: 1 | BJ182: 2 | CC182: 1 | CD182: 1 | CE182: 2 | CY182: 69 | DA182: 115
B183: 801. Poésie | D183: 2 | E183: 13 | F183: 2 | G183: 53 | H183: 1 | I183: 25 | O183: 1 | P183: 1 | Q183: 1 | R183: 2 | S183: 6 | U183: 1 | V183: 1 | W183: 1 | X183: 3 | Y183: 2 | AD183: 27 | AE183: 1 | AG183: 1 | AH183: 48 | AJ183: 2 | AL183: 3 | AM183: 5 | AN183: 2 | AP183: 1 | AQ183: 1 | AS183: 1 | AU183: 18 | AV183: 10 | BE183: 1 | BI183: 1 | BJ183: 12 | BM183: 1 | BN183: 1 | BQ183: 1 | BS183: 4 | BU183: 1 | BW183: 17 | BX183: 1 | CA183: 5 | CB183: 5 | CC183: 10 | CD183: 15 | CE183: 23 | CG183: 1 | CL183: 1 | CM183: 1 | CN183: 2 | CP183: 1 | CQ183: 2 | CR183: 1 | CU183: 3 | CY183: 60 | CZ183: 1 | DA183: 406
B184: 802. Théâtre | D184: 2 | E184: 14 | F184: 2 | G184: 30 | I184: 6 | P184: 2 | R184: 1 | X184: 2 | Y184: 1 | Z184: 1 | AA184: 2 | AD184: 15 | AH184: 9 | AM184: 5 | AN184: 1 | AU184: 9 | AV184: 1 | AZ184: 1 | BJ184: 2 | BW184: 1 | CA184: 2 | CB184: 2 | CC184: 1 | CD184: 1 | CE184: 6 | CG184: 1 | CN184: 1 | CU184: 1 | CX184: 1 | CY184: 6 | DA184: 129
B185: 803. Romans et fiction romanesque | C185: 3 | D185: 2 | E185: 192 | F185: 6 | G185: 3268 | I185: 33 | J185: 1 | K185: 5 | N185: 1 | P185: 1 | Q185: 3 | R185: 3 | S185: 28 | U185: 17 | V185: 1 | W185: 2 | Y185: 21 | AD185: 138 | AF185: 1 | AG185: 11 | AH185: 40 | AI185: 1 | AJ185: 1 | AL185: 15 | AM185: 5 | AN185: 13 | AO185: 1 | AP185: 13 | AR185: 2 | AT185: 28 | AU185: 137 | AV185: 52 | AX185: 1 | AZ185: 1 | BA185: 1 | BB185: 1 | BC185: 4 | BG185: 1 | BJ185: 1 | BL185: 1 | BP185: 1 | BQ185: 1 | BS185: 26 | BU185: 25 | BW185: 8 | BY185: 1 | CA185: 5 | CB185: 18 | CC185: 44 | CD185: 15 | CE185: 68 | CG185: 1 | CH185: 2 | CI185: 3 | CK185: 1 | CL185: 3 | CN185: 70 | CQ185: 1 | CR185: 2 | CS185: 2 | CT185: 1 | CU185: 11 | CV185: 3 | CW185: 6 | CX185: 2 | CY185: 42 | DA185: 4418
B186: 804. Essais littéraires et écrits divers | E186: 17 | F186: 1 | G186: 77 | I186: 3 | S186: 1 | V186: 1 | W186: 1 | Y186: 1 | AD186: 13 | AH186: 6 | AM186: 3 | AN186: 1 | AP186: 1 | AU186: 13 | AW186: 1 | AZ186: 1 | BJ186: 2 | BP186: 1 | BS186: 1 | BW186: 4 | CC186: 3 | CD186: 2 | CE186: 9 | CG186: 2 | CN186: 1 | CR186: 1 | CV186: 1 | CY186: 39 | CZ186: 1 | DA186: 208
B187: 805. Bandes dessinées | E187: 11 | G187: 951 | S187: 33 | U187: 9 | V187: 1 | X187: 4 | Y187: 3 | AD187: 51 | AG187: 6 | AH187: 15 | AT187: 1 | AU187: 62 | AV187: 1487 | BH187: 1 | BS187: 4 | BU187: 2 | CC187: 11 | CE187: 1 | CL187: 1 | CN187: 4 | CU187: 1 | CY187: 5 | DA187: 2664
B188: 809. Littérature pour la jeunesse | E188: 65 | F188: 2 | G188: 1468 | I188: 8 | P188: 1 | Q188: 2 | R188: 6 | S188: 5 | U188: 15 | V188: 2 | W188: 3 | Y188: 8 | AD188: 66 | AF188: 2 | AG188: 3 | AH188: 111 | AL188: 1 | AN188: 1 | AS188: 5 | AT188: 2 | AU188: 75 | AV188: 71 | BD188: 1 | BK188: 1 | BL188: 1 | BN188: 1 | BS188: 44 | BT188: 1 | BU188: 9 | CA188: 3 | CB188: 2 | CC188: 6 | CE188: 5 | CN188: 29 | CP188: 1 | CR188: 6 | CY188: 80 | DA188: 2112
A189: 9XX | B189: 900. Histoire et géographie (généralités) | E189: 2 | G189: 18 | I189: 1 | AH189: 2 | AN189: 1 | CY189: 3 | DA189: 27
B190: 910. Géographie, tourisme (guides) et voyages | E190: 3 | G190: 139 | I190: 1 | R190: 1 | S190: 1 | Y190: 1 | AD190: 4 | AH190: 54 | AT190: 1 | AU190: 16 | BS190: 2 | CC190: 2 | CE190: 2 | CY190: 12 | DA190: 239
B191: 920. Biographies et généalogie | D191: 1 | E191: 71 | G191: 452 | I191: 3 | K191: 1 | N191: 1 | S191: 6 | U191: 1 | W191: 1 | Y191: 2 | AD191: 36 | AG191: 1 | AH191: 29 | AL191: 3 | AM191: 1 | AN191: 4 | AO191: 2 | AU191: 44 | AV191: 12 | BJ191: 3 | BK191: 1 | BL191: 1 | BS191: 10 | BU191: 3 | BV191: 1 | BW191: 2 | CA191: 1 | CB191: 8 | CC191: 12 | CD191: 2 | CE191: 28 | CI191: 1 | CK191: 1 | CN191: 1 | CR191: 2 | CT191: 2 | CU191: 4 | CW191: 2 | CX191: 2 | CY191: 20 | DA191: 778
B192: 930. Préhistoire et histoire ancienne | E192: 1 | G192: 12 | AH192: 7 | AM192: 6 | AU192: 8 | BJ192: 3 | CY192: 15 | DA192: 52
B193: 940. Histoire médiévale, moderne et contemporaine (sauf la France) | E193: 16 | F193: 2 | G193: 54 | I193: 1 | K193: 1 | S193: 1 | AA193: 1 | AD193: 6 | AH193: 10 | AK193: 1 | AM193: 1 | AN193: 2 | AP193: 2 | AT193: 1 | AU193: 8 | AV193: 2 | BJ193: 2 | BS193: 2 | CB193: 1 | CC193: 3 | CE193: 9 | CI193: 4 | CN193: 2 | CV193: 1 | CY193: 41 | DA193: 174
B194: 944. Histoire de la France (depuis 486) | E194: 2 | G194: 14 | M194: 1 | AH194: 16 | AI194: 2 | AU194: 1 | BJ194: 1 | BS194: 1 | CY194: 16 | DA194: 54 | DB194: =SUM(DB125:DB193) -> 0
A195: Total | C195: 3 | D195: 7 | E195: 847 | F195: 16 | G195: 8983 | H195: 1 | I195: 137 | J195: 1 | K195: 7 | L195: 1 | M195: 1 | N195: 2 | O195: 1 | P195: 5 | Q195: 6 | R195: 14 | S195: 107 | T195: 2 | U195: 50 | V195: 6 | W195: 8 | X195: 9 | Y195: 47 | Z195: 1 | AA195: 3 | AB195: 1 | AC195: 1 | AD195: 518 | AE195: 1 | AF195: 3 | AG195: 26 | AH195: 1094 | AI195: 4 | AJ195: 3 | AK195: 1 | AL195: 30 | AM195: 78 | AN195: 76 | AO195: 8 | AP195: 18 | AQ195: 1 | AR195: 2 | AS195: 6 | AT195: 33 | AU195: 634 | AV195: 1741 | AW195: 1 | AX195: 1 | AY195: 1 | AZ195: 3 | BA195: 1 | BB195: 1 | BC195: 4 | BD195: 1 | BE195: 1 | BF195: 1 | BG195: 1 | BH195: 2 | BI195: 1 | BJ195: 114 | BK195: 2 | BL195: 3 | BM195: 1 | BN195: 2 | BO195: 2 | BP195: 2 | BQ195: 2 | BR195: 5 | BS195: 144 | BT195: 1 | BU195: 47 | BV195: 1 | BW195: 33 | BX195: 1 | BY195: 1 | BZ195: 1 | CA195: 18 | CB195: 52 | CC195: 114 | CD195: 42 | CE195: 195 | CF195: 2 | CG195: 15 | CH195: 2 | CI195: 8 | CJ195: 1 | CK195: 2 | CL195: 5 | CM195: 3 | CN195: 122 | CO195: 3 | CP195: 2 | CQ195: 6 | CR195: 14 | CS195: 4 | CT195: 17 | CU195: 23 | CV195: 7 | CW195: 9 | CX195: 6 | CY195: 1393 | CZ195: 3 | DA195: 16993
C198: 2017
A199: Classe | B199: Indice | C199: Afrikaans | D199: Akkadien | E199: Albanais | F199: Arabe | G199: Arménien | H199: Basque | I199: Bengali | J199: Langues berbères | K199: Breton | L199: Bulgare | M199: Catalan | N199: Chinois | O199: Slavon | P199: Corse | Q199: Créole | R199: Tchèque | S199: Danois | T199: Néerlandais | U199: Egyptien | V199: Anglais | W199: Estonien | X199: Finnois | Y199: Dialecte français | Z199: Français | AA199: Français moyen | AB199: Français ancien | AC199: Peul | AD199: Géorgien | AE199: Allemand | AF199: Galician | AG199: Allemand moyen haut | AH199: Grec ancien | AI199: Grec | AJ199: Alsacien | AK199: Hébreux | AL199: Croate | AM199: Hongrois | AN199: Islandais | AO199: Indonésien | AP199: Italien | AQ199: Japonais | AR199: Coréen | AS199: Latin | AT199: Mandingue | AU199: Langues austronésiennes | AV199: Malgache | AW199: Maltais | AX199: Langues multiples | AY199: Multilingue | AZ199: Norvégien | BA199: Occitan | BB199: Persan | BC199: Polonais | BD199: Portugais | BE199: Roumain | BF199: Russe | BG199: Sanskrit | BH199: Slovène | BI199: Espagnol | BJ199: Serbe | BK199: Suisse | BL199: Syriaque | BM199: Tamoul | BN199: Tibétain | BO199: Turc | BP199: Ukrainien | BQ199: Vietnamien | BR199: Yiddish | BS199: Anglais moyen | BT199: Copte | BU199: Avestique | BV199: Ourdou | BW199: Vieux norrois | BX199: Sarde | BY199: Pendjabi | BZ199: Langue maya | CA199: Tatar de Crimée | CB199: Fon | CC199: Langue iranienne | CD199: Slovaque | CE199: Lituanien | CF199: Mongol | CG199: Guèze | CH199: Rwandais
A200: 0XX | B200: 000. Généralités | CI200: =SUM(C200:CH200) -> 0
B201: 004. Informatique | V201: 52 | Z201: 30 | CI201: =SUM(C201:CH201) -> 82
B202: 020. Sciences de l'information | Z202: 1 | AP202: 1 | CI202: =SUM(C202:CH202) -> 2
B203: 030. Encyclopédies générales | V203: 11 | AS203: 1 | CI203: =SUM(C203:CH203) -> 12
B204: 060. Organisations à vocation savante | CI204: =SUM(C204:CH204) -> 0
B205: 070. Presse et édition | V205: 3 | AE205: 1 | CI205: =SUM(C205:CH205) -> 4
B206: 090. Bibliophilie | CI206: =SUM(C206:CH206) -> 0
A207: 1XX | B207: 100. Philosophie | F207: 1 | T207: 2 | U207: 1 | V207: 31 | Z207: 6 | AE207: 39 | AH207: 12 | AK207: 1 | AP207: 17 | AQ207: 4 | AS207: 22 | AZ207: 1 | BC207: 1 | BD207: 1 | BE207: 1 | BF207: 2 | BI207: 1 | BJ207: 1 | CI207: =SUM(C207:CH207) -> 144
B208: 130. Esotérisme, phénomènes paranormaux | F208: 1 | V208: 156 | Z208: 6 | AA208: 1 | AD208: 1 | AE208: 24 | AG208: 1 | AP208: 21 | AQ208: 1 | AS208: 1 | AX208: 2 | AZ208: 1 | BF208: 11 | BI208: 3 | BK208: 1 | CI208: =SUM(C208:CH208) -> 231
... 140 more rows
